Workbook

Sheet TABLA
C4: TAULA PERM/F 2000C | J4: TAULA PERM/F 2000P
A6: JAIOTZE | B6: ADINA x | C6: Hilkortasun basea qx | E6: Hobekuntza faktorea λx | H6: JAIOTZE | I6: ADINA x | J6: Hilkortasun basea qx | L6: Hobekuntza faktorea λx
A7: URTEA | B7: 2000 urtean | C7: Gizonak | D7: Emakumeak | E7: Gizonak | F7: Emakumeak | H7: URTEA | I7: 2000 urtean | J7: Gizonak | K7: Emakumeak | L7: Gizonak | M7: Emakumeak
A8: 2000 | B8: 0 | C8: 6.487 | D8: 3.633 | E8: 0 | F8: 0.04 | H8: 2000 | I8: 0 | J8: 5.742 | K8: 3.215 | L8: 0.015 | M8: 0.04
A9: 1999 | B9: 1 | C9: 0.638 | D9: 0.298 | E9: 0 | F9: 0.04 | H9: 1999 | I9: 1 | J9: 0.565 | K9: 0.264 | L9: 0.015 | M9: 0.04
A10: 1998 | B10: 2 | C10: 0.339 | D10: 0.221 | E10: 0 | F10: 0.04 | H10: 1998 | I10: 2 | J10: 0.3 | K10: 0.196 | L10: 0.015 | M10: 0.04
A11: 1997 | B11: 3 | C11: 0.3 | D11: 0.149 | E11: 0 | F11: 0.04 | H11: 1997 | I11: 3 | J11: 0.266 | K11: 0.132 | L11: 0.015 | M11: 0.04
A12: 1996 | B12: 4 | C12: 0.254 | D12: 0.144 | E12: 0 | F12: 0.04 | H12: 1996 | I12: 4 | J12: 0.225 | K12: 0.128 | L12: 0.015 | M12: 0.04
A13: 1995 | B13: 5 | C13: 0.247 | D13: 0.119 | E13: 0 | F13: 0.04 | H13: 1995 | I13: 5 | J13: 0.218 | K13: 0.105 | L13: 0.015 | M13: 0.04
A14: 1994 | B14: 6 | C14: 0.223 | D14: 0.108 | E14: 0 | F14: 0.04 | H14: 1994 | I14: 6 | J14: 0.198 | K14: 0.096 | L14: 0.015 | M14: 0.04
A15: 1993 | B15: 7 | C15: 0.216 | D15: 0.098 | E15: 0 | F15: 0.04 | H15: 1993 | I15: 7 | J15: 0.191 | K15: 0.087 | L15: 0.015 | M15: 0.04
A16: 1992 | B16: 8 | C16: 0.2 | D16: 0.083 | E16: 0 | F16: 0.04 | H16: 1992 | I16: 8 | J16: 0.177 | K16: 0.073 | L16: 0.015 | M16: 0.04
A17: 1991 | B17: 9 | C17: 0.193 | D17: 0.077 | E17: 0 | F17: 0.04 | H17: 1991 | I17: 9 | J17: 0.171 | K17: 0.068 | L17: 0.015 | M17: 0.04
A18: 1990 | B18: 10 | C18: 0.185 | D18: 0.083 | E18: 0 | F18: 0.04 | H18: 1990 | I18: 10 | J18: 0.164 | K18: 0.073 | L18: 0.015 | M18: 0.04
A19: 1989 | B19: 11 | C19: 0.201 | D19: 0.103 | E19: 0 | F19: 0.03 | H19: 1989 | I19: 11 | J19: 0.178 | K19: 0.091 | L19: 0.015 | M19: 0.03
A20: 1988 | B20: 12 | C20: 0.208 | D20: 0.12 | E20: 0 | F20: 0.03 | H20: 1988 | I20: 12 | J20: 0.184 | K20: 0.106 | L20: 0.015 | M20: 0.03
A21: 1987 | B21: 13 | C21: 0.247 | D21: 0.135 | E21: 0 | F21: 0.027 | H21: 1987 | I21: 13 | J21: 0.219 | K21: 0.12 | L21: 0.015 | M21: 0.027
A22: 1986 | B22: 14 | C22: 0.301 | D22: 0.141 | E22: 0 | F22: 0.027 | H22: 1986 | I22: 14 | J22: 0.267 | K22: 0.125 | L22: 0.015 | M22: 0.027
A23: 1985 | B23: 15 | C23: 0.41 | D23: 0.153 | E23: 0 | F23: 0.027 | H23: 1985 | I23: 15 | J23: 0.362 | K23: 0.135 | L23: 0.015 | M23: 0.027
A24: 1984 | B24: 16 | C24: 0.572 | D24: 0.177 | E24: 0 | F24: 0.027 | H24: 1984 | I24: 16 | J24: 0.506 | K24: 0.156 | L24: 0.015 | M24: 0.027
A25: 1983 | B25: 17 | C25: 0.743 | D25: 0.206 | E25: 0 | F25: 0.027 | H25: 1983 | I25: 17 | J25: 0.657 | K25: 0.182 | L25: 0.015 | M25: 0.027
A26: 1982 | B26: 18 | C26: 0.875 | D26: 0.224 | E26: 0 | F26: 0.027 | H26: 1982 | I26: 18 | J26: 0.774 | K26: 0.198 | L26: 0.015 | M26: 0.027
A27: 1981 | B27: 19 | C27: 0.985 | D27: 0.241 | E27: 0 | F27: 0.027 | H27: 1981 | I27: 19 | J27: 0.871 | K27: 0.214 | L27: 0.015 | M27: 0.027
A28: 1980 | B28: 20 | C28: 1.102 | D28: 0.242 | E28: 0 | F28: 0.027 | H28: 1980 | I28: 20 | J28: 0.976 | K28: 0.214 | L28: 0.015 | M28: 0.027
A29: 1979 | B29: 21 | C29: 1.143 | D29: 0.253 | E29: 0 | F29: 0.027 | H29: 1979 | I29: 21 | J29: 1.011 | K29: 0.224 | L29: 0.015 | M29: 0.027
A30: 1978 | B30: 22 | C30: 1.222 | D30: 0.242 | E30: 0 | F30: 0.027 | H30: 1978 | I30: 22 | J30: 1.082 | K30: 0.214 | L30: 0.015 | M30: 0.027
A31: 1977 | B31: 23 | C31: 1.287 | D31: 0.254 | E31: 0 | F31: 0.027 | H31: 1977 | I31: 23 | J31: 1.139 | K31: 0.225 | L31: 0.015 | M31: 0.027
A32: 1976 | B32: 24 | C32: 1.336 | D32: 0.266 | E32: 0 | F32: 0.027 | H32: 1976 | I32: 24 | J32: 1.182 | K32: 0.235 | L32: 0.015 | M32: 0.027
A33: 1975 | B33: 25 | C33: 1.322 | D33: 0.272 | E33: 0 | F33: 0.027 | H33: 1975 | I33: 25 | J33: 1.17 | K33: 0.24 | L33: 0.015 | M33: 0.027
A34: 1974 | B34: 26 | C34: 1.348 | D34: 0.295 | E34: 0 | F34: 0.027 | H34: 1974 | I34: 26 | J34: 1.193 | K34: 0.261 | L34: 0.015 | M34: 0.027
A35: 1973 | B35: 27 | C35: 1.398 | D35: 0.325 | E35: 0 | F35: 0.027 | H35: 1973 | I35: 27 | J35: 1.237 | K35: 0.288 | L35: 0.015 | M35: 0.027
A36: 1972 | B36: 28 | C36: 1.448 | D36: 0.337 | E36: 0 | F36: 0.027 | H36: 1972 | I36: 28 | J36: 1.281 | K36: 0.298 | L36: 0.015 | M36: 0.027
A37: 1971 | B37: 29 | C37: 1.466 | D37: 0.367 | E37: 0 | F37: 0.027 | H37: 1971 | I37: 29 | J37: 1.298 | K37: 0.325 | L37: 0.015 | M37: 0.027
A38: 1970 | B38: 30 | C38: 1.429 | D38: 0.367 | E38: 0 | F38: 0.027 | H38: 1970 | I38: 30 | J38: 1.265 | K38: 0.325 | L38: 0.015 | M38: 0.027
A39: 1969 | B39: 31 | C39: 1.387 | D39: 0.373 | E39: 0.001 | F39: 0.027 | H39: 1969 | I39: 31 | J39: 1.227 | K39: 0.33 | L39: 0.015 | M39: 0.027
A40: 1968 | B40: 32 | C40: 1.414 | D40: 0.356 | E40: 0.002 | F40: 0.027 | H40: 1968 | I40: 32 | J40: 1.252 | K40: 0.315 | L40: 0.015 | M40: 0.027
A41: 1967 | B41: 33 | C41: 1.418 | D41: 0.344 | E41: 0.003 | F41: 0.027 | H41: 1967 | I41: 33 | J41: 1.255 | K41: 0.305 | L41: 0.015 | M41: 0.027
A42: 1966 | B42: 34 | C42: 1.407 | D42: 0.374 | E42: 0.004 | F42: 0.027 | H42: 1966 | I42: 34 | J42: 1.245 | K42: 0.331 | L42: 0.015 | M42: 0.027
A43: 1965 | B43: 35 | C43: 1.38 | D43: 0.44 | E43: 0.005 | F43: 0.027 | H43: 1965 | I43: 35 | J43: 1.222 | K43: 0.389 | L43: 0.015 | M43: 0.027
A44: 1964 | B44: 36 | C44: 1.347 | D44: 0.458 | E44: 0.006 | F44: 0.027 | H44: 1964 | I44: 36 | J44: 1.192 | K44: 0.405 | L44: 0.015 | M44: 0.027
A45: 1963 | B45: 37 | C45: 1.336 | D45: 0.464 | E45: 0.007 | F45: 0.027 | H45: 1963 | I45: 37 | J45: 1.182 | K45: 0.411 | L45: 0.015 | M45: 0.027
A46: 1962 | B46: 38 | C46: 1.436 | D46: 0.488 | E46: 0.008 | F46: 0.027 | H46: 1962 | I46: 38 | J46: 1.271 | K46: 0.432 | L46: 0.015 | M46: 0.027
A47: 1961 | B47: 39 | C47: 1.571 | D47: 0.495 | E47: 0.009 | F47: 0.027 | H47: 1961 | I47: 39 | J47: 1.391 | K47: 0.438 | L47: 0.015 | M47: 0.027
A48: 1960 | B48: 40 | C48: 1.667 | D48: 0.584 | E48: 0.0092 | F48: 0.027 | H48: 1960 | I48: 40 | J48: 1.476 | K48: 0.517 | L48: 0.015 | M48: 0.027
A49: 1959 | B49: 41 | C49: 1.793 | D49: 0.561 | E49: 0.0094 | F49: 0.026 | H49: 1959 | I49: 41 | J49: 1.587 | K49: 0.496 | L49: 0.015 | M49: 0.026
A50: 1958 | B50: 42 | C50: 1.919 | D50: 0.658 | E50: 0.0096 | F50: 0.026 | H50: 1958 | I50: 42 | J50: 1.698 | K50: 0.582 | L50: 0.015 | M50: 0.026
A51: 1957 | B51: 43 | C51: 2.016 | D51: 0.707 | E51: 0.0098 | F51: 0.026 | H51: 1957 | I51: 43 | J51: 1.784 | K51: 0.626 | L51: 0.015 | M51: 0.026
A52: 1956 | B52: 44 | C52: 2.158 | D52: 0.762 | E52: 0.01 | F52: 0.026 | H52: 1956 | I52: 44 | J52: 1.91 | K52: 0.675 | L52: 0.015 | M52: 0.026
A53: 1955 | B53: 45 | C53: 2.334 | D53: 0.85 | E53: 0.01 | F53: 0.025 | H53: 1955 | I53: 45 | J53: 2.066 | K53: 0.753 | L53: 0.015 | M53: 0.025
A54: 1954 | B54: 46 | C54: 2.565 | D54: 0.87 | E54: 0.01 | F54: 0.025 | H54: 1954 | I54: 46 | J54: 2.27 | K54: 0.77 | L54: 0.015 | M54: 0.025
A55: 1953 | B55: 47 | C55: 2.693 | D55: 0.957 | E55: 0.01 | F55: 0.025 | H55: 1953 | I55: 47 | J55: 2.384 | K55: 0.847 | L55: 0.015 | M55: 0.025
A56: 1952 | B56: 48 | C56: 2.823 | D56: 0.996 | E56: 0.01 | F56: 0.025 | H56: 1952 | I56: 48 | J56: 2.499 | K56: 0.881 | L56: 0.015 | M56: 0.025
A57: 1951 | B57: 49 | C57: 3.292 | D57: 1.2 | E57: 0.01 | F57: 0.024 | H57: 1951 | I57: 49 | J57: 2.914 | K57: 1.062 | L57: 0.015 | M57: 0.025
A58: 1950 | B58: 50 | C58: 3.708 | D58: 1.378 | E58: 0.01 | F58: 0.023 | H58: 1950 | I58: 50 | J58: 3.281 | K58: 1.22 | L58: 0.015 | M58: 0.025
A59: 1949 | B59: 51 | C59: 4.134 | D59: 1.558 | E59: 0.01 | F59: 0.023 | H59: 1949 | I59: 51 | J59: 3.673 | K59: 1.385 | L59: 0.015 | M59: 0.025
A60: 1948 | B60: 52 | C60: 4.502 | D60: 1.631 | E60: 0.01 | F60: 0.023 | H60: 1948 | I60: 52 | J60: 4.001 | K60: 1.449 | L60: 0.015 | M60: 0.025
A61: 1947 | B61: 53 | C61: 5.372 | D61: 1.918 | E61: 0.01 | F61: 0.023 | H61: 1947 | I61: 53 | J61: 4.773 | K61: 1.704 | L61: 0.015 | M61: 0.025
A62: 1946 | B62: 54 | C62: 5.695 | D62: 2.037 | E62: 0.01 | F62: 0.023 | H62: 1946 | I62: 54 | J62: 5.061 | K62: 1.81 | L62: 0.015 | M62: 0.025
A63: 1945 | B63: 55 | C63: 6.106 | D63: 2.195 | E63: 0.01 | F63: 0.023 | H63: 1945 | I63: 55 | J63: 5.445 | K63: 1.957 | L63: 0.015 | M63: 0.025
A64: 1944 | B64: 56 | C64: 6.518 | D64: 2.286 | E64: 0.01 | F64: 0.023 | H64: 1944 | I64: 56 | J64: 5.812 | K64: 2.038 | L64: 0.015 | M64: 0.025
A65: 1943 | B65: 57 | C65: 7.079 | D65: 2.566 | E65: 0.01 | F65: 0.023 | H65: 1943 | I65: 57 | J65: 6.313 | K65: 2.288 | L65: 0.015 | M65: 0.025
A66: 1942 | B66: 58 | C66: 7.703 | D66: 2.827 | E66: 0.011 | F66: 0.023 | H66: 1942 | I66: 58 | J66: 6.869 | K66: 2.521 | L66: 0.015 | M66: 0.025
A67: 1941 | B67: 59 | C67: 8.183 | D67: 3.058 | E67: 0.012 | F67: 0.023 | H67: 1941 | I67: 59 | J67: 7.298 | K67: 2.727 | L67: 0.015 | M67: 0.025
A68: 1940 | B68: 60 | C68: 9.184 | D68: 3.424 | E68: 0.013 | F68: 0.024 | H68: 1940 | I68: 60 | J68: 8.22 | K68: 3.064 | L68: 0.015 | M68: 0.025
A69: 1939 | B69: 61 | C69: 10.07 | D69: 3.727 | E69: 0.013 | F69: 0.024 | H69: 1939 | I69: 61 | J69: 9.014 | K69: 3.336 | L69: 0.015 | M69: 0.025
A70: 1938 | B70: 62 | C70: 10.876 | D70: 4.133 | E70: 0.013 | F70: 0.024 | H70: 1938 | I70: 62 | J70: 9.735 | K70: 3.699 | L70: 0.015 | M70: 0.025
A71: 1937 | B71: 63 | C71: 11.748 | D71: 4.395 | E71: 0.013 | F71: 0.025 | H71: 1937 | I71: 63 | J71: 10.516 | K71: 3.934 | L71: 0.015 | M71: 0.025
A72: 1936 | B72: 64 | C72: 13.045 | D72: 4.828 | E72: 0.013 | F72: 0.025 | H72: 1936 | I72: 64 | J72: 11.676 | K72: 4.322 | L72: 0.015 | M72: 0.025
A73: 1935 | B73: 65 | C73: 14.533 | D73: 5.451 | E73: 0.013 | F73: 0.025 | H73: 1935 | I73: 65 | J73: 13.03 | K73: 4.887 | L73: 0.015 | M73: 0.025
A74: 1934 | B74: 66 | C74: 15.69 | D74: 6.053 | E74: 0.013 | F74: 0.025 | H74: 1934 | I74: 66 | J74: 14.067 | K74: 5.427 | L74: 0.015 | M74: 0.025
A75: 1933 | B75: 67 | C75: 17.221 | D75: 6.698 | E75: 0.013 | F75: 0.025 | H75: 1933 | I75: 67 | J75: 15.44 | K75: 6.005 | L75: 0.015 | M75: 0.025
A76: 1932 | B76: 68 | C76: 18.968 | D76: 7.433 | E76: 0.013 | F76: 0.025 | H76: 1932 | I76: 68 | J76: 17.005 | K76: 6.664 | L76: 0.015 | M76: 0.025
A77: 1931 | B77: 69 | C77: 20.645 | D77: 8.403 | E77: 0.013 | F77: 0.025 | H77: 1931 | I77: 69 | J77: 18.509 | K77: 7.533 | L77: 0.015 | M77: 0.025
A78: 1930 | B78: 70 | C78: 22.27 | D78: 9.33 | E78: 0.013 | F78: 0.025 | H78: 1930 | I78: 70 | J78: 19.978 | K78: 8.37 | L78: 0.015 | M78: 0.025
A79: 1929 | B79: 71 | C79: 24.429 | D79: 10.684 | E79: 0.013 | F79: 0.025 | H79: 1929 | I79: 71 | J79: 21.915 | K79: 9.584 | L79: 0.015 | M79: 0.025
A80: 1928 | B80: 72 | C80: 27.259 | D80: 12.013 | E80: 0.013 | F80: 0.025 | H80: 1928 | I80: 72 | J80: 24.454 | K80: 10.777 | L80: 0.015 | M80: 0.025
A81: 1927 | B81: 73 | C81: 30.296 | D81: 13.893 | E81: 0.013 | F81: 0.025 | H81: 1927 | I81: 73 | J81: 27.179 | K81: 12.463 | L81: 0.015 | M81: 0.025
A82: 1926 | B82: 74 | C82: 33.69 | D82: 15.897 | E82: 0.0127 | F82: 0.024 | H82: 1926 | I82: 74 | J82: 30.224 | K82: 14.262 | L82: 0.015 | M82: 0.025
A83: 1925 | B83: 75 | C83: 37.286 | D83: 18.249 | E83: 0.0124 | F83: 0.023 | H83: 1925 | I83: 75 | J83: 33.45 | K83: 16.372 | L83: 0.015 | M83: 0.025
A84: 1924 | B84: 76 | C84: 40.934 | D84: 21.049 | E84: 0.0121 | F84: 0.022 | H84: 1924 | I84: 76 | J84: 36.722 | K84: 18.883 | L84: 0.015 | M84: 0.025
A85: 1923 | B85: 77 | C85: 44.857 | D85: 24.341 | E85: 0.0118 | F85: 0.021 | H85: 1923 | I85: 77 | J85: 40.242 | K85: 21.837 | L85: 0.015 | M85: 0.025
A86: 1922 | B86: 78 | C86: 49.256 | D86: 27.849 | E86: 0.0115 | F86: 0.02 | H86: 1922 | I86: 78 | J86: 44.188 | K86: 24.984 | L86: 0.015 | M86: 0.025
A87: 1921 | B87: 79 | C87: 54.411 | D87: 32.056 | E87: 0.0112 | F87: 0.019 | H87: 1921 | I87: 79 | J87: 48.813 | K87: 28.758 | L87: 0.015 | M87: 0.025
A88: 1920 | B88: 80 | C88: 59.678 | D88: 37.498 | E88: 0.0109 | F88: 0.018 | H88: 1920 | I88: 80 | J88: 53.538 | K88: 33.64 | L88: 0.015 | M88: 0.025
A89: 1919 | B89: 81 | C89: 66.056 | D89: 43.054 | E89: 0.0106 | F89: 0.017 | H89: 1919 | I89: 81 | J89: 59.26 | K89: 38.624 | L89: 0.015 | M89: 0.024
A90: 1918 | B90: 82 | C90: 72.769 | D90: 48.1 | E90: 0.0103 | F90: 0.016 | H90: 1918 | I90: 82 | J90: 65.282 | K90: 43.151 | L90: 0.015 | M90: 0.023
A91: 1917 | B91: 83 | C91: 78.957 | D91: 54.719 | E91: 0.01 | F91: 0.015 | H91: 1917 | I91: 83 | J91: 70.833 | K91: 49.089 | L91: 0.015 | M91: 0.022
A92: 1916 | B92: 84 | C92: 84.61 | D92: 62.984 | E92: 0.01 | F92: 0.014 | H92: 1916 | I92: 84 | J92: 75.905 | K92: 56.504 | L92: 0.015 | M92: 0.021
A93: 1915 | B93: 85 | C93: 92.859 | D93: 71.238 | E93: 0.01 | F93: 0.013 | H93: 1915 | I93: 85 | J93: 83.305 | K93: 63.908 | L93: 0.015 | M93: 0.02
A94: 1914 | B94: 86 | C94: 102.503 | D94: 79.092 | E94: 0.01 | F94: 0.012 | H94: 1914 | I94: 86 | J94: 91.956 | K94: 70.955 | L94: 0.015 | M94: 0.019
A95: 1913 | B95: 87 | C95: 110.684 | D95: 88.704 | E95: 0.01 | F95: 0.011 | H95: 1913 | I95: 87 | J95: 99.296 | K95: 79.577 | L95: 0.015 | M95: 0.018
A96: 1912 | B96: 88 | C96: 120.763 | D96: 98.128 | E96: 0.01 | F96: 0.01 | H96: 1912 | I96: 88 | J96: 108.338 | K96: 88.031 | L96: 0.015 | M96: 0.017
A97: 1911 | B97: 89 | C97: 132.697 | D97: 109.289 | E97: 0.01 | F97: 0.01 | H97: 1911 | I97: 89 | J97: 119.043 | K97: 98.045 | L97: 0.015 | M97: 0.016
A98: 1910 | B98: 90 | C98: 145.575 | D98: 121.868 | E98: 0.01 | F98: 0.009 | H98: 1910 | I98: 90 | J98: 130.597 | K98: 109.329 | L98: 0.015 | M98: 0.015
A99: 1909 | B99: 91 | C99: 158.966 | D99: 135.539 | E99: 0.01 | F99: 0.008 | H99: 1909 | I99: 91 | J99: 142.61 | K99: 121.594 | L99: 0.015 | M99: 0.015
A100: 1908 | B100: 92 | C100: 174.313 | D100: 150.147 | E100: 0.009 | F100: 0.007 | H100: 1908 | I100: 92 | J100: 156.378 | K100: 134.699 | L100: 0.0135 | M100: 0.0135
A101: 1907 | B101: 93 | C101: 189.886 | D101: 165.612 | E101: 0.008 | F101: 0.006 | H101: 1907 | I101: 93 | J101: 170.348 | K101: 148.572 | L101: 0.012 | M101: 0.012
A102: 1906 | B102: 94 | C102: 206.827 | D102: 183.671 | E102: 0.007 | F102: 0.005 | H102: 1906 | I102: 94 | J102: 185.547 | K102: 164.773 | L102: 0.0105 | M102: 0.0105
A103: 1905 | B103: 95 | C103: 223.026 | D103: 202.81 | E103: 0.006 | F103: 0.004 | H103: 1905 | I103: 95 | J103: 200.079 | K103: 181.943 | L103: 0.009 | M103: 0.009
A104: 1904 | B104: 96 | C104: 240.493 | D104: 223.01 | E104: 0.005 | F104: 0.003 | H104: 1904 | I104: 96 | J104: 215.749 | K104: 200.065 | L104: 0.0075 | M104: 0.0075
A105: 1903 | B105: 97 | C105: 259.327 | D105: 244.252 | E105: 0.004 | F105: 0.002 | H105: 1903 | I105: 97 | J105: 232.644 | K105: 219.121 | L105: 0.006 | M105: 0.006
A106: 1902 | B106: 98 | C106: 279.634 | D106: 266.51 | E106: 0.003 | F106: 0.001 | H106: 1902 | I106: 98 | J106: 250.862 | K106: 239.089 | L106: 0.0045 | M106: 0.0045
A107: 1901 | B107: 99 | C107: 302.162 | D107: 290.369 | E107: 0.002 | F107: 0 | H107: 1901 | I107: 99 | J107: 271.072 | K107: 260.493 | L107: 0.003 | M107: 0.003
A108: 1900 | B108: 100 | C108: 326.505 | D108: 312.166 | E108: 0.001 | F108: 0 | H108: 1900 | I108: 100 | J108: 292.911 | K108: 280.047 | L108: 0.0015 | M108: 0.0015
A109: 1899 | B109: 101 | C109: 361.19 | D109: 342.489 | E109: 0 | F109: 0 | H109: 1899 | I109: 101 | J109: 324.89 | K109: 308.068 | L109: 0 | M109: 0
A110: 1898 | B110: 102 | C110: 386.405 | D110: 365.956 | E110: 0 | F110: 0 | H110: 1898 | I110: 102 | J110: 347.57 | K110: 329.176 | L110: 0 | M110: 0
A111: 1897 | B111: 103 | C111: 413.38 | D111: 389.957 | E111: 0 | F111: 0 | H111: 1897 | I111: 103 | J111: 371.835 | K111: 350.765 | L111: 0 | M111: 0
A112: 1896 | B112: 104 | C112: 442.239 | D112: 414.475 | E112: 0 | F112: 0 | H112: 1896 | I112: 104 | J112: 397.793 | K112: 372.819 | L112: 0 | M112: 0
A113: 1895 | B113: 105 | C113: 473.112 | D113: 439.502 | E113: 0 | F113: 0 | H113: 1895 | I113: 105 | J113: 425.563 | K113: 395.331 | L113: 0 | M113: 0
A114: 1894 | B114: 106 | C114: 506.141 | D114: 465.043 | E114: 0 | F114: 0 | H114: 1894 | I114: 106 | J114: 455.272 | K114: 418.305 | L114: 0 | M114: 0
A115: 1893 | B115: 107 | C115: 541.475 | D115: 491.114 | E115: 0 | F115: 0 | H115: 1893 | I115: 107 | J115: 487.055 | K115: 441.756 | L115: 0 | M115: 0
A116: 1892 | B116: 108 | C116: 579.276 | D116: 518.648 | E116: 0 | F116: 0 | H116: 1892 | I116: 108 | J116: 510.801 | K116: 468.981 | L116: 0 | M116: 0
A117: 1891 | B117: 109 | C117: 619.716 | D117: 547.724 | E117: 0 | F117: 0 | H117: 1891 | I117: 109 | J117: 535.704 | K117: 497.884 | L117: 0 | M117: 0
A118: 1890 | B118: 110 | C118: 662.979 | D118: 578.431 | E118: 0 | F118: 0 | H118: 1890 | I118: 110 | J118: 561.821 | K118: 528.568 | L118: 0 | M118: 0
A119: 1889 | B119: 111 | C119: 709.262 | D119: 610.859 | E119: 0 | F119: 0 | H119: 1889 | I119: 111 | J119: 589.211 | K119: 561.143 | L119: 0 | M119: 0
A120: 1888 | B120: 112 | C120: 758.776 | D120: 645.106 | E120: 0 | F120: 0 | H120: 1888 | I120: 112 | J120: 617.937 | K120: 595.725 | L120: 0 | M120: 0
A121: 1887 | B121: 113 | C121: 1000 | D121: 1000 | E121: 0 | F121: 0 | H121: 1887 | I121: 113 | J121: 648.064 | K121: 632.439 | L121: 0 | M121: 0
H122: 1886 | I122: 114 | J122: 679.659 | K122: 671.416 | L122: 0 | M122: 0
H123: 1885 | I123: 115 | J123: 1000 | K123: 1000 | L123: 0 | M123: 0

Sheet GIZONAK
A1: Kontratua | B1: c | E1: nEx | F1: x | G1: 40 | H1: Urteroko errenta | L1: i | M1: 0.03 | R1: Kapital Diferitua
A2: Generazioa | B2: 1960 | E2: =((1+$G$2)^-$G$3)*(LOOKUP($G$1+$G$3,A:A,C:C)/LOOKUP($G$1,A:A,C:C)) -> 0.5148974168 | F2: i | G2: 0.03 | H2: ax | I2: =SUM(F6:F82) -> 23.07825744 | L2: β | M2: =$S$23 -> 1.02 | R2: n | S2: 20
F3: n | G3: 20 | H3: äx | I3: =SUM(F5:F82) -> 24.07825744 | R3: x | S3: 40
A4: Adina | B4: qx | C4: lx | E4: t | F4: tEx | K4: x | L4: Dx | M4: Nx | N4: Sx | O4: VDx | P4: VNx | R4: nEx | S4: =VLOOKUP($S$3+$S$2,K5:L120,2,FALSE)/VLOOKUP($S$3,K5:L120,2,FALSE) -> 0.5148974168
A5: 0 | B5: =(IF($B$1="c",TABLA!$C8,TABLA!$J8))*EXP(-(IF($B$1="c",TABLA!$E8,TABLA!$L8)*($B$2-TABLA!$A8))) -> 6.487 | C5: 1000000 | E5: 0 | F5: =((1+$G$2)^-E5)*(LOOKUP($G$1+E5,A:A,C:C)/LOOKUP($G$1,A:A,C:C)) -> 1 | K5: 0 | L5: =((1+$M$1)^-K5)*C5 -> 1000000 | M5: =SUM(L5:$L$120) -> 30553024.16 | N5: =SUM(M5:$M$120) -> 801237701.9 | O5: =($M$2^K5)*L5 -> 1000000 | P5: =SUM(O5:O$120) -> 55614689.09 | R5: Errenta konstantea
A6: 1 | B6: =(IF($B$1="c",TABLA!C9,TABLA!J9))*EXP(-(IF($B$1="c",TABLA!E9,TABLA!L9)*($B$2-TABLA!A9))) -> 0.638 | C6: =C5*(1-(B5/1000)) -> 993513 | E6: 1 | F6: =((1+$G$2)^-E6)*(LOOKUP($G$1+E6,A:A,C:C)/LOOKUP($G$1,A:A,C:C)) -> 0.9692553398 | K6: 1 | L6: 964575.7282 | M6: =SUM(L6:$L$120) -> 29553024.16 | N6: =SUM(M6:$M$120) -> 770684677.7 | O6: =($M$2^K6)*L6 -> 983867.2427 | P6: =SUM(O6:O$120) -> 54614689.09
A7: 2 | B7: =(IF($B$1="c",TABLA!C10,TABLA!J10))*EXP(-(IF($B$1="c",TABLA!E10,TABLA!L10)*($B$2-TABLA!A10))) -> 0.339 | C7: =C6*(1-(B6/1000)) -> 992879.1387 | E7: 2 | F7: 0.9393531305 | K7: 2 | L7: 935883.8144 | M7: =SUM(L7:$L$120) -> 28588448.43 | N7: =SUM(M7:$M$120) -> 741131653.6 | O7: 973693.5205 | P7: =SUM(O7:O$120) -> 53630821.85 | R7: x | S7: 40 | T7: n | U7: 20 | V7: d | W7: 20 | Z7: m | AA7: 12
A8: 3 | B8: =(IF($B$1="c",TABLA!C11,TABLA!J11))*EXP(-(IF($B$1="c",TABLA!E11,TABLA!L11)*($B$2-TABLA!A11))) -> 0.3 | C8: 992542.5527 | E8: 3 | F8: 0.9102764971 | K8: 3 | L8: 908317.0386 | M8: =SUM(L8:$L$120) -> 27652564.62 | N8: =SUM(M8:$M$120) -> 712543205.1 | O8: 963913.3079 | P8: =SUM(O8:O$120) -> 52657128.33 | R8: ax | S8: =VLOOKUP($S$7+1,$K$4:$M$120,3,FALSE)/VLOOKUP($S$7,$K$4:$M$120,2,FALSE) -> 23.07825744 | T8: ax:n | U8: =(VLOOKUP($S$7+1,$K$4:$M$120,3,FALSE)-VLOOKUP($S$7+$U$7+1,$K$4:$M$120,3,FALSE))/VLOOKUP($S$7,$K$4:$M$120,2,FALSE) -> 14.50606533 | V8: d/ax | W8: =VLOOKUP($S$7+$W$7+1,$K$4:$M$120,3,FALSE)/VLOOKUP($S$7,$K$4:$M$120,2,FALSE) -> 8.572192108 | X8: d/ax:n | Y8: =(VLOOKUP($S$7+$W$7+1,$K$4:$M$120,3,FALSE)-VLOOKUP($S$7+$W$7+$U$7+1,$K$4:$M$120,3,FALSE))/VLOOKUP($S$7,$K$4:$M$120,2,FALSE) -> 6.845254795 | Z8: a(m)x | AA8: =(S8*(($AA$7+1)/($AA$7*2)))+(S9*($AA$7-1)/(2*$AA$7)) -> 23.53659078 | AB8: a(m)x:n | AC8: =(U8*(($AA$7+1)/($AA$7*2)))+(U9*($AA$7-1)/(2*$AA$7)) -> 14.72840402 | AD8: d/a(m)x | AE8: =(W8*(($AA$7+1)/($AA$7*2)))+(W9*($AA$7-1)/(2*$AA$7)) -> 8.808186758 | AF8: d/a(m)x:n | AG8: =(Y8*(($AA$7+1)/($AA$7*2)))+(Y9*($AA$7-1)/(2*$AA$7)) -> 6.988576781
A9: 4 | B9: =(IF($B$1="c",TABLA!C12,TABLA!J12))*EXP(-(IF($B$1="c",TABLA!E12,TABLA!L12)*($B$2-TABLA!A12))) -> 0.254 | C9: 992244.7899 | E9: 4 | F9: 0.8820335405 | K9: 4 | L9: 881596.6442 | M9: =SUM(L9:$L$120) -> 26744247.58 | N9: =SUM(M9:$M$120) -> 684890640.5 | O9: 954268.5598 | P9: =SUM(O9:O$120) -> 51693215.02 | R9: äx | S9: =VLOOKUP($S$7,$K$4:$M$120,3,FALSE)/VLOOKUP($S$7,$K$4:$M$120,2,FALSE) -> 24.07825744 | T9: äx:n | U9: =(VLOOKUP($S$7,$K$4:$M$120,3,FALSE)-VLOOKUP($S$7+$U$7,$K$4:$M$120,3,FALSE))/VLOOKUP($S$7,$K$4:$M$120,2,FALSE) -> 14.99116792 | V9: d/äx | W9: =VLOOKUP($S$7+$W$7,$K$4:$M$120,3,FALSE)/VLOOKUP($S$7,$K$4:$M$120,2,FALSE) -> 9.087089525 | X9: d/äx:n | Y9: =(VLOOKUP($S$7+$W$7,$K$4:$M$120,3,FALSE)-VLOOKUP($S$7+$U$7+$W$7,$K$4:$M$120,3,FALSE))/VLOOKUP($S$7,$K$4:$M$120,2,FALSE) -> 7.157957309 | Z9: ä(m)x | AA9: =(S9*(($AA$7+1)/($AA$7*2)))+(S8*($AA$7-1)/(2*$AA$7)) -> 23.61992411 | AB9: ä(m)x:n | AC9: =(U9*(($AA$7+1)/($AA$7*2)))+(U8*($AA$7-1)/(2*$AA$7)) -> 14.76882923 | AD9: d/ä(m)x | AE9: =(W9*(($AA$7+1)/($AA$7*2)))+(W8*($AA$7-1)/(2*$AA$7)) -> 8.851094876 | AF9: d/äx:n | AG9: =(Y9*(($AA$7+1)/($AA$7*2)))+(Y8*($AA$7-1)/(2*$AA$7)) -> 7.014635324
A10: 5 | B10: =(IF($B$1="c",TABLA!C13,TABLA!J13))*EXP(-(IF($B$1="c",TABLA!E13,TABLA!L13)*($B$2-TABLA!A13))) -> 0.247 | C10: 991992.7597 | E10: 5 | F10: 0.8545677152 | K10: 5 | L10: 855701.6686 | M10: =SUM(L10:$L$120) -> 25862650.93 | N10: =SUM(M10:$M$120) -> 658146392.9 | O10: 944763.7856 | P10: =SUM(O10:O$120) -> 50738946.46
A11: 6 | B11: =(IF($B$1="c",TABLA!C14,TABLA!J14))*EXP(-(IF($B$1="c",TABLA!E14,TABLA!L14)*($B$2-TABLA!A14))) -> 0.223 | C11: 991747.7375 | E11: 6 | F11: 0.827835369 | K11: 6 | L11: 830573.1168 | M11: =SUM(L11:$L$120) -> 25006949.26 | N11: =SUM(M11:$M$120) -> 632283742 | O11: 935360.2306 | P11: =SUM(O11:O$120) -> 49794182.68 | R11: Increasing errenta
A12: 7 | B12: =(IF($B$1="c",TABLA!C15,TABLA!J15))*EXP(-(IF($B$1="c",TABLA!E15,TABLA!L15)*($B$2-TABLA!A15))) -> 0.216 | C12: 991526.5778 | E12: 7 | F12: 0.8017821634 | K12: 7 | L12: 806201.8437 | M12: =SUM(L12:$L$120) -> 24176376.15 | N12: =SUM(M12:$M$120) -> 607276792.7 | O12: 926072.503 | P12: =SUM(O12:O$120) -> 48858822.45
A13: 8 | B13: =(IF($B$1="c",TABLA!C16,TABLA!J16))*EXP(-(IF($B$1="c",TABLA!E16,TABLA!L16)*($B$2-TABLA!A16))) -> 0.2 | C13: 991312.408 | E13: 8 | F13: 0.7764746983 | K13: 8 | L13: 782551.169 | M13: =SUM(L13:$L$120) -> 23370174.3 | N13: =SUM(M13:$M$120) -> 583100416.6 | O13: 916883.4183 | P13: =SUM(O13:O$120) -> 47932749.94 | R13: x | S13: 40 | T13: n | U13: 20 | V13: d | W13: 20 | Z13: m | AA13: 12
A14: 9 | B14: =(IF($B$1="c",TABLA!C17,TABLA!J17))*EXP(-(IF($B$1="c",TABLA!E17,TABLA!L17)*($B$2-TABLA!A17))) -> 0.193 | C14: 991114.1456 | E14: 9 | F14: 0.7518944061 | K14: 9 | L14: 759606.4648 | M14: =SUM(L14:$L$120) -> 22587623.14 | N14: =SUM(M14:$M$120) -> 559730242.3 | O14: 907800.0412 | P14: =SUM(O14:O$120) -> 47015866.53 | R14: (Ia)x | S14: =VLOOKUP($S$13+1,$K$4:$N$120,4,FALSE)/VLOOKUP($S$13,$K$4:$N$120,2,FALSE) -> 416.1320374 | T14: (Ia)x:n | U14: =(VLOOKUP($S$13+1,$K$4:$N$120,4,FALSE)-VLOOKUP($S$13+$U$13+1,$K$4:$N$120,4,FALSE)-($U$13*VLOOKUP($S$13+$U$13+1,$K$4:$N$120,3,FALSE)))/VLOOKUP($S$13,$K$4:$M$120,2,FALSE) -> 136.4839535 | V14: d/(Ia)x | W14: =VLOOKUP($S$13+$W$13+1,$K$4:$N$120,4,FALSE)/VLOOKUP($S$13,$K$4:$N$120,2,FALSE) -> 108.2042418 | X14: d/(Ia)x:n | Y14: =(VLOOKUP($S$13+$W$13+1,$K$4:$N$120,4,FALSE)-VLOOKUP($S$13+$U$13+$W$13+1,$K$4:$N$120,4,FALSE)-($U$13*VLOOKUP($S$13+$U$13+$W$13+1,$K$4:$N$120,3,FALSE)))/VLOOKUP($S$13,$K$4:$M$120,2,FALSE) -> 61.63811939 | Z14: (Ia)(m)x | AA14: =(S14*(($AA$13+1)/($AA$13*2)))+(S15*($AA$13-1)/(2*$AA$13)) -> 427.1679054 | AB14: (Ia)(m)x:n | AC14: =(U14*(($AA$13+1)/($AA$13*2)))+(U15*($AA$13-1)/(2*$AA$13)) -> 138.6350125 | AD14: d/(Ia)(m)x | AE14: =(W14*(($AA$13+1)/($AA$13*2)))+(W15*($AA$13-1)/(2*$AA$13)) -> 112.3691578 | AF14: d/(Ia)(m)x:n | AG14: =(Y14*(($AA$13+1)/($AA$13*2)))+(Y15*($AA$13-1)/(2*$AA$13)) -> 63.06539655
A15: 10 | B15: =(IF($B$1="c",TABLA!C18,TABLA!J18))*EXP(-(IF($B$1="c",TABLA!E18,TABLA!L18)*($B$2-TABLA!A18))) -> 0.185 | C15: 990922.8605 | E15: 10 | F15: 0.7277982625 | K15: 10 | L15: 737339.6706 | M15: =SUM(L15:$L$120) -> 21828016.67 | N15: =SUM(M15:$M$120) -> 537142619.2 | O15: 898812.9442 | P15: =SUM(O15:O$120) -> 46108066.49 | R15: (Iä)x | S15: =VLOOKUP($S$13,$K$4:$N$120,4,FALSE)/VLOOKUP($S$13,$K$4:$N$120,2,FALSE) -> 440.2102949 | T15: (Iä)x:n | U15: =(VLOOKUP($S$13,$K$4:$N$120,4,FALSE)-VLOOKUP($S$13+$U$13,$K$4:$N$120,4,FALSE)-($U$13*VLOOKUP($S$13+$U$13,$K$4:$N$120,3,FALSE)))/VLOOKUP($S$13,$K$4:$M$120,2,FALSE) -> 141.1771731 | V15: d/(Iä)x | W15: =VLOOKUP($S$13+$W$13,$K$4:$N$120,4,FALSE)/VLOOKUP($S$13,$K$4:$N$120,2,FALSE) -> 117.2913313 | X15: d/(Iä)x:n | Y15: =(VLOOKUP($S$13+$W$13,$K$4:$N$120,4,FALSE)-VLOOKUP($S$13+$U$13+$W$13,$K$4:$N$120,4,FALSE)-($U$13*VLOOKUP($S$13+$U$13+$W$13,$K$4:$N$120,3,FALSE)))/VLOOKUP($S$13,$K$4:$M$120,2,FALSE) -> 64.75217865 | Z15: (Iä)(m)x | AA15: =(S15*(($AA$13+1)/($AA$13*2)))+(S14*($AA$13-1)/(2*$AA$13)) -> 429.1744269 | AB15: (Iä)(m)x:n | AC15: =(U15*(($AA$13+1)/($AA$13*2)))+(U14*($AA$13-1)/(2*$AA$13)) -> 139.0261141 | AD15: d/(Iä)(m)x | AE15: =(W15*(($AA$13+1)/($AA$13*2)))+(W14*($AA$13-1)/(2*$AA$13)) -> 113.1264153 | AF15: d/(Iä)x:n | AG15: =(Y15*(($AA$13+1)/($AA$13*2)))+(Y14*($AA$13-1)/(2*$AA$13)) -> 63.32490149
A16: 11 | B16: =(IF($B$1="c",TABLA!C19,TABLA!J19))*EXP(-(IF($B$1="c",TABLA!E19,TABLA!L19)*($B$2-TABLA!A19))) -> 0.201 | C16: 990739.5398 | E16: 11 | F16: 0.7042295141 | K16: 11 | L16: 715731.3231 | M16: =SUM(L16:$L$120) -> 21090677 | N16: =SUM(M16:$M$120) -> 515314602.5 | O16: 889921.9389 | P16: =SUM(O16:O$120) -> 45209253.54
A17: 12 | B17: =(IF($B$1="c",TABLA!C20,TABLA!J20))*EXP(-(IF($B$1="c",TABLA!E20,TABLA!L20)*($B$2-TABLA!A20))) -> 0.208 | C17: 990540.4011 | E17: 12 | F17: 0.6811859085 | K17: 12 | L17: 694745.1079 | M17: =SUM(L17:$L$120) -> 20374945.68 | N17: =SUM(M17:$M$120) -> 494223925.5 | O17: 881104.7824 | P17: =SUM(O17:O$120) -> 44319331.6 | R17: Decreasing errenta
A18: 13 | B18: =(IF($B$1="c",TABLA!C21,TABLA!J21))*EXP(-(IF($B$1="c",TABLA!E21,TABLA!L21)*($B$2-TABLA!A21))) -> 0.247 | C18: 990334.3687 | E18: 13 | F18: 0.6587048452 | K18: 13 | L18: 674369.5154 | M18: =SUM(L18:$L$120) -> 19680200.57 | N18: =SUM(M18:$M$120) -> 473848979.8 | O18: 872368.8765 | P18: =SUM(O18:O$120) -> 43438226.82 | R18: x | S18: 40 | T18: n | U18: 20 | V18: d | W18: 20 | Z18: m | AA18: 12
A19: 14 | B19: =(IF($B$1="c",TABLA!C22,TABLA!J22))*EXP(-(IF($B$1="c",TABLA!E22,TABLA!L22)*($B$2-TABLA!A22))) -> 0.301 | C19: 990089.7562 | E19: 14 | F19: 0.6365025725 | K19: 14 | L19: 654565.9672 | M19: =SUM(L19:$L$120) -> 19005831.05 | N19: =SUM(M19:$M$120) -> 454168779.2 | O19: 863685.8927 | P19: =SUM(O19:O$120) -> 42565857.94 | T19: (Da)x:n | U19: =(-VLOOKUP($S$18+2,$K$4:$N$120,4,FALSE)+VLOOKUP($S$18+$U$18+2,$K$4:$N$120,4,FALSE)+($U$18*VLOOKUP($S$18+1,$K$4:$N$120,3,FALSE)))/VLOOKUP($S$18,$K$4:$M$120,2,FALSE) -> 168.1434185 | X19: d/(Da)x:n | Y19: =(-VLOOKUP($S$18+$W$18+2,$K$4:$N$120,4,FALSE)+VLOOKUP($S$18+$W$18+$U$18+2,$K$4:$N$120,4,FALSE)+($U$18*VLOOKUP($S$18+$W$18+1,$K$4:$N$120,3,FALSE)))/VLOOKUP($S$18,$K$4:$M$120,2,FALSE) -> 82.1122313 | AB19: (Da)(m)x:n | AC19: =(U19*(($AA$18+1)/($AA$18*2)))+(U20*($AA$18-1)/(2*$AA$18)) -> 170.6614719 | AF19: d/(Da)x:n | AG19: =(Y19*(($AA$18+1)/($AA$18*2)))+(Y20*($AA$18-1)/(2*$AA$18)) -> 83.69471584
A20: 15 | B20: =(IF($B$1="c",TABLA!C23,TABLA!J23))*EXP(-(IF($B$1="c",TABLA!E23,TABLA!L23)*($B$2-TABLA!A23))) -> 0.41 | C20: 989791.7391 | E20: 15 | F20: 0.6149041275 | K20: 15 | L20: 635309.6532 | M20: =SUM(L20:$L$120) -> 18351265.09 | N20: =SUM(M20:$M$120) -> 435162948.2 | O20: 855043.1473 | P20: =SUM(O20:O$120) -> 41702172.05 | T20: (Dä)x:n | U20: =(-VLOOKUP($S$18+1,$K$4:$N$120,4,FALSE)+VLOOKUP($S$18+$U$18+1,$K$4:$N$120,4,FALSE)+($U$18*VLOOKUP($S$18,$K$4:$N$120,3,FALSE)))/VLOOKUP($S$18,$K$4:$M$120,2,FALSE) -> 173.6373532 | X20: d/(Dä)x:n | Y20: =(-VLOOKUP($S$18+$W$18+1,$K$4:$N$120,4,FALSE)+VLOOKUP($S$18+$W$18+$U$18+1,$K$4:$N$120,4,FALSE)+($U$18*VLOOKUP($S$18+$W$18,$K$4:$N$120,3,FALSE)))/VLOOKUP($S$18,$K$4:$M$120,2,FALSE) -> 85.56492484 | AB20: (Dä)x:n | AC20: =(U20*(($AA$18+1)/($AA$18*2)))+(U19*($AA$18-1)/(2*$AA$18)) -> 171.1192998 | AF20: d/(Dä)x:n | AG20: =(Y20*(($AA$18+1)/($AA$18*2)))+(Y19*($AA$18-1)/(2*$AA$18)) -> 83.9824403
A21: 16 | B21: =(IF($B$1="c",TABLA!C24,TABLA!J24))*EXP(-(IF($B$1="c",TABLA!E24,TABLA!L24)*($B$2-TABLA!A24))) -> 0.572 | C21: 989385.9245 | E21: 16 | F21: 0.5938568053 | K21: 16 | L21: 616552.5983 | M21: =SUM(L21:$L$120) -> 17715955.43 | N21: =SUM(M21:$M$120) -> 416811683.1 | O21: 846394.5934 | P21: =SUM(O21:O$120) -> 40847128.9
A22: 17 | B22: =(IF($B$1="c",TABLA!C25,TABLA!J25))*EXP(-(IF($B$1="c",TABLA!E25,TABLA!L25)*($B$2-TABLA!A25))) -> 0.743 | C22: 988819.9958 | E22: 17 | F22: 0.5733576333 | K22: 17 | L22: 598252.3594 | M22: =SUM(L22:$L$120) -> 17099402.83 | N22: =SUM(M22:$M$120) -> 399095727.7 | O22: 837697.7328 | P22: =SUM(O22:O$120) -> 40000734.31 | R22: Errenta progresio geometrikoan
A23: 18 | B23: =(IF($B$1="c",TABLA!C26,TABLA!J26))*EXP(-(IF($B$1="c",TABLA!E26,TABLA!L26)*($B$2-TABLA!A26))) -> 0.875 | C23: 988085.3025 | E23: 18 | F23: 0.5533333667 | K23: 18 | L23: 580395.9786 | M23: =SUM(L23:$L$120) -> 16501150.48 | N23: =SUM(M23:$M$120) -> 381996324.8 | O23: 828948.3785 | P23: =SUM(O23:O$120) -> 39163036.58 | R23: β | S23: =1.02 -> 1.02
A24: 19 | B24: =(IF($B$1="c",TABLA!C27,TABLA!J27))*EXP(-(IF($B$1="c",TABLA!E27,TABLA!L27)*($B$2-TABLA!A27))) -> 0.985 | C24: 987220.7279 | E24: 19 | F24: 0.5338220215 | K24: 19 | L24: 562998.1865 | M24: =SUM(L24:$L$120) -> 15920754.5 | N24: =SUM(M24:$M$120) -> 365495174.4 | O24: 820182.0482 | P24: =SUM(O24:O$120) -> 38334088.2
A25: 20 | B25: =(IF($B$1="c",TABLA!C28,TABLA!J28))*EXP(-(IF($B$1="c",TABLA!E28,TABLA!L28)*($B$2-TABLA!A28))) -> 1.102 | C25: 986248.3155 | E25: 20 | F25: 0.5148974168 | K25: 20 | L25: 546061.7799 | M25: =SUM(L25:$L$120) -> 15357756.31 | N25: =SUM(M25:$M$120) -> 349574419.9 | O25: 811419.0799 | P25: =SUM(O25:O$120) -> 37513906.15 | R25: x | S25: 40 | T25: n | U25: 20 | V25: d | W25: 20 | Z25: m | AA25: 12
A26: 21 | B26: =(IF($B$1="c",TABLA!C29,TABLA!J29))*EXP(-(IF($B$1="c",TABLA!E29,TABLA!L29)*($B$2-TABLA!A29))) -> 1.143 | C26: 985161.4698 | E26: 21 | F26: 0.496360441 | K26: 21 | L26: 529572.8348 | M26: =SUM(L26:$L$120) -> 14811694.53 | N26: =SUM(M26:$M$120) -> 334216663.5 | O26: 802655.7223 | P26: =SUM(O26:O$120) -> 36702487.07 | R26: Vax | S26: =VLOOKUP($S$25+1,$K$4:$P$120,6,FALSE)/(VLOOKUP($S$25,$K$4:$P$120,5,FALSE)*$M$2) -> 33.54958082 | T26: Vax:n | U26: =(VLOOKUP($S$25+1,$K$4:$P$120,6,FALSE)-VLOOKUP($S$25+$U$25+1,$K$4:$P$120,6,FALSE))/($M$2*VLOOKUP($S$25,$K$4:$P$120,5,FALSE)) -> 17.24433264 | V26: d/Vax | W26: =VLOOKUP($S$25+$W$25+1,$K$4:$P$120,6,FALSE)/(VLOOKUP($S$25,$K$4:$P$120,5,FALSE)*($M$2^($W$25+1))) -> 10.97296461 | X26: d/Vax:n | Y26: =(VLOOKUP($S$25+$W$25+1,$K$4:$P$120,6,FALSE)-VLOOKUP($S$25+$W$25+$U$25+1,$K$4:$P$120,6,FALSE))/(($M$2^($W$25+1))*VLOOKUP($S$25,$K$4:$P$120,5,FALSE)) -> 8.070958797 | Z26: Va(m)x | AA26: =(S26*(($AA$25+1)/($AA$25*2)))+(S27*($AA$25-1)/(2*$AA$25)) -> 34.31545198 | AB26: Va(m)x:n | AC26: =(U26*(($AA$25+1)/($AA$25*2)))+(U27*($AA$25-1)/(2*$AA$25)) -> 17.51006339 | AD26: d/Va(m)x | AE26: =(W26*(($AA$25+1)/($AA$25*2)))+(W27*($AA$25-1)/(2*$AA$25)) -> 11.30954476 | AF26: d/Va(m)x:n | AG26: =(Y26*(($AA$25+1)/($AA$25*2)))+(Y27*($AA$25-1)/(2*$AA$25)) -> 8.243230532
A27: 22 | B27: =(IF($B$1="c",TABLA!C30,TABLA!J30))*EXP(-(IF($B$1="c",TABLA!E30,TABLA!L30)*($B$2-TABLA!A30))) -> 1.222 | C27: 984035.4303 | E27: 22 | F27: 0.4782099351 | K27: 22 | L27: 513560.7117 | M27: =SUM(L27:$L$120) -> 14282121.7 | N27: =SUM(M27:$M$120) -> 319404969 | O27: 793954.4199 | P27: =SUM(O27:O$120) -> 35899831.35 | R27: Väx | S27: =VLOOKUP($S$25,$K$4:$P$120,6,FALSE)/VLOOKUP($S$25,$K$4:$P$120,5,FALSE) -> 35.22057244 | T27: Väx:n | U27: =(VLOOKUP($S$25,$K$4:$P$120,6,FALSE)-VLOOKUP($S$25+$U$25,$K$4:$P$120,6,FALSE))/(VLOOKUP($S$25,$K$4:$P$120,5,FALSE)) -> 17.82410882 | V27: d/Väx | W27: =VLOOKUP($S$25+$W$25,$K$4:$P$120,6,FALSE)/(VLOOKUP($S$25,$K$4:$P$120,5,FALSE)*($M$2^($W$25))) -> 11.70732131 | X27: d/Väx:n | Y27: =(VLOOKUP($S$25+$W$25,$K$4:$P$120,6,FALSE)-VLOOKUP($S$25+$W$25+$U$25,$K$4:$P$120,6,FALSE))/(($M$2^($W$25))*VLOOKUP($S$25,$K$4:$P$120,5,FALSE)) -> 8.446824401 | Z27: Vä(m)x | AA27: =(S27*(($AA$25+1)/($AA$25*2)))+(S26*($AA$25-1)/(2*$AA$25)) -> 34.45470128 | AB27: Vä(m)x:n | AC27: =(U27*(($AA$25+1)/($AA$25*2)))+(U26*($AA$25-1)/(2*$AA$25)) -> 17.55837807 | AD27: d/Vä(m)x | AE27: =(W27*(($AA$25+1)/($AA$25*2)))+(W26*($AA$25-1)/(2*$AA$25)) -> 11.37074116 | AF27: d/Vä(m)x:n | AG27: =(Y27*(($AA$25+1)/($AA$25*2)))+(Y26*($AA$25-1)/(2*$AA$25)) -> 8.274552666
A28: 23 | B28: =(IF($B$1="c",TABLA!C31,TABLA!J31))*EXP(-(IF($B$1="c",TABLA!E31,TABLA!L31)*($B$2-TABLA!A31))) -> 1.287 | C28: 982832.939 | E28: 23 | F28: 0.4604879707 | K28: 23 | L28: 497993.3403 | M28: =SUM(L28:$L$120) -> 13768560.98 | N28: =SUM(M28:$M$120) -> 305122847.3 | O28: 785285.3318 | P28: =SUM(O28:O$120) -> 35105876.93
A29: 24 | B29: =(IF($B$1="c",TABLA!C32,TABLA!J32))*EXP(-(IF($B$1="c",TABLA!E32,TABLA!L32)*($B$2-TABLA!A32))) -> 1.336 | C29: 981568.033 | E29: 24 | F29: 0.4431808477 | K29: 24 | L29: 482866.4299 | M29: =SUM(L29:$L$120) -> 13270567.64 | N29: =SUM(M29:$M$120) -> 291354286.3 | O29: 776660.3524 | P29: =SUM(O29:O$120) -> 34320591.6
A30: 25 | B30: =(IF($B$1="c",TABLA!C33,TABLA!J33))*EXP(-(IF($B$1="c",TABLA!E33,TABLA!L33)*($B$2-TABLA!A33))) -> 1.322 | C30: 980256.6581 | E30: 25 | F30: 0.4261641235 | K30: 25 | L30: 468176.0392 | M30: =SUM(L30:$L$120) -> 12787701.21 | N30: =SUM(M30:$M$120) -> 278083718.7 | O30: 768092.4164 | P30: =SUM(O30:O$120) -> 33543931.24
A31: 26 | B31: =(IF($B$1="c",TABLA!C34,TABLA!J34))*EXP(-(IF($B$1="c",TABLA!E34,TABLA!L34)*($B$2-TABLA!A34))) -> 1.348 | C31: 978960.7588 | E31: 26 | F31: 0.4094069819 | K31: 26 | L31: 453938.9422 | M31: =SUM(L31:$L$120) -> 12319525.17 | N31: =SUM(M31:$M$120) -> 265296017.5 | O31: 759629.6487 | P31: =SUM(O31:O$120) -> 32775838.83
A32: 27 | B32: =(IF($B$1="c",TABLA!C35,TABLA!J35))*EXP(-(IF($B$1="c",TABLA!E35,TABLA!L35)*($B$2-TABLA!A35))) -> 1.398 | C32: 977641.1197 | E32: 27 | F32: 0.3930346639 | K32: 27 | L32: 440123.3325 | M32: =SUM(L32:$L$120) -> 11865586.23 | N32: =SUM(M32:$M$120) -> 252976492.3 | O32: 751240.5644 | P32: =SUM(O32:O$120) -> 32016209.18
A33: 28 | B33: =(IF($B$1="c",TABLA!C36,TABLA!J36))*EXP(-(IF($B$1="c",TABLA!E36,TABLA!L36)*($B$2-TABLA!A36))) -> 1.448 | C33: 976274.3774 | E33: 28 | F33: 0.3769609564 | K33: 28 | L33: 426706.8351 | M33: =SUM(L33:$L$120) -> 11425462.9 | N33: =SUM(M33:$M$120) -> 241110906.1 | O33: 742906.9288 | P33: =SUM(O33:O$120) -> 31264968.61
A34: 29 | B34: =(IF($B$1="c",TABLA!C37,TABLA!J37))*EXP(-(IF($B$1="c",TABLA!E37,TABLA!L37)*($B$2-TABLA!A37))) -> 1.466 | C34: 974860.7321 | E34: 29 | F34: 0.36115762 | K34: 29 | L34: 413678.6054 | M34: =SUM(L34:$L$120) -> 10998756.06 | N34: =SUM(M34:$M$120) -> 229685443.2 | O34: 734628.9549 | P34: =SUM(O34:O$120) -> 30522061.69
A35: 30 | B35: =(IF($B$1="c",TABLA!C38,TABLA!J38))*EXP(-(IF($B$1="c",TABLA!E38,TABLA!L38)*($B$2-TABLA!A38))) -> 1.429 | C35: 973431.5863 | E35: 30 | F35: 0.3456731668 | K35: 30 | L35: 401040.9248 | M35: =SUM(L35:$L$120) -> 10585077.46 | N35: =SUM(M35:$M$120) -> 218686687.1 | O35: 726430.1249 | P35: =SUM(O35:O$120) -> 29787432.73
A36: 31 | B36: =(IF($B$1="c",TABLA!C39,TABLA!J39))*EXP(-(IF($B$1="c",TABLA!E39,TABLA!L39)*($B$2-TABLA!A39))) -> 1.399539342 | C36: 972040.5525 | E36: 31 | F36: 0.3305447449 | K36: 31 | L36: 388803.7256 | M36: =SUM(L36:$L$120) -> 10184036.53 | N36: =SUM(M36:$M$120) -> 208101609.7 | O36: 718349.4149 | P36: =SUM(O36:O$120) -> 29061002.61
A37: 32 | B37: =(IF($B$1="c",TABLA!C40,TABLA!J40))*EXP(-(IF($B$1="c",TABLA!E40,TABLA!L40)*($B$2-TABLA!A40))) -> 1.436805961 | C37: 970680.1435 | E37: 32 | F37: 0.3156778704 | K37: 32 | L37: =((1+$M$1)^-K37)*C37 -> 376951.048 | M37: =SUM(L37:$L$120) -> 9795232.809 | N37: =SUM(M37:$M$120) -> 197917573.1 | O37: 710379.5513 | P37: =SUM(O37:O$120) -> 28342653.19
A38: 33 | B38: =(IF($B$1="c",TABLA!C41,TABLA!J41))*EXP(-(IF($B$1="c",TABLA!E41,TABLA!L41)*($B$2-TABLA!A41))) -> 1.448092869 | C38: 969285.4645 | E38: 33 | F38: 0.3009721166 | K38: 33 | L38: 365446.0607 | M38: =SUM(L38:$L$120) -> 9418281.761 | N38: =SUM(M38:$M$120) -> 188122340.3 | O38: 702471.8943 | P38: =SUM(O38:O$120) -> 27632273.64
A39: 34 | B39: =(IF($B$1="c",TABLA!C42,TABLA!J42))*EXP(-(IF($B$1="c",TABLA!E42,TABLA!L42)*($B$2-TABLA!A42))) -> 1.441176477 | C39: 967881.8491 | E39: 34 | F39: 0.2864414337 | K39: 34 | L39: 354288.2144 | M39: =SUM(L39:$L$120) -> 9052835.7 | N39: =SUM(M39:$M$120) -> 178704058.5 | O39: 694644.4105 | P39: =SUM(O39:O$120) -> 26929801.75
A40: 35 | B40: =(IF($B$1="c",TABLA!C43,TABLA!J43))*EXP(-(IF($B$1="c",TABLA!E43,TABLA!L43)*($B$2-TABLA!A43))) -> 1.414934866 | C40: 966486.9606 | E40: 35 | F40: 0.2720147306 | K40: 35 | L40: 343473.42 | M40: =SUM(L40:$L$120) -> 8698547.486 | N40: =SUM(M40:$M$120) -> 169651222.8 | O40: 686908.9043 | P40: =SUM(O40:O$120) -> 26235157.34
A41: 36 | B41: =(IF($B$1="c",TABLA!C44,TABLA!J44))*EXP(-(IF($B$1="c",TABLA!E44,TABLA!L44)*($B$2-TABLA!A44))) -> 1.379719058 | C41: 965119.4445 | E41: 36 | F41: 0.2577120227 | K41: 36 | L41: 332997.5024 | M41: =SUM(L41:$L$120) -> 8355074.066 | N41: =SUM(M41:$M$120) -> 160952675.4 | O41: 679277.3906 | P41: =SUM(O41:O$120) -> 25548248.43
A42: 37 | B42: =(IF($B$1="c",TABLA!C45,TABLA!J45))*EXP(-(IF($B$1="c",TABLA!E45,TABLA!L45)*($B$2-TABLA!A45))) -> 1.364352661 | C42: 963787.8508 | E42: 37 | F42: 0.2435805867 | K42: 37 | L42: 322852.4849 | M42: =SUM(L42:$L$120) -> 8022076.563 | N42: =SUM(M42:$M$120) -> 152597601.3 | O42: 671754.3517 | P42: =SUM(O42:O$120) -> 24868971.04
A43: 38 | B43: =(IF($B$1="c",TABLA!C46,TABLA!J46))*EXP(-(IF($B$1="c",TABLA!E46,TABLA!L46)*($B$2-TABLA!A46))) -> 1.459160792 | C43: 962472.9043 | E43: 38 | F43: 0.2296307659 | K43: 38 | L43: 313021.3594 | M43: =SUM(L43:$L$120) -> 7699224.078 | N43: =SUM(M43:$M$120) -> 144575524.7 | O43: 664324.8531 | P43: =SUM(O43:O$120) -> 24197216.69
A44: 39 | B44: =(IF($B$1="c",TABLA!C47,TABLA!J47))*EXP(-(IF($B$1="c",TABLA!E47,TABLA!L47)*($B$2-TABLA!A47))) -> 1.585202817 | C44: 961068.5016 | E44: 39 | F44: 0.215848914 | K44: 39 | L44: 303460.7873 | M44: =SUM(L44:$L$120) -> 7386202.719 | N44: =SUM(M44:$M$120) -> 136876300.7 | O44: 656915.1517 | P44: =SUM(O44:O$120) -> 23532891.84
A45: 40 | B45: =(IF($B$1="c",TABLA!C48,TABLA!J48))*EXP(-(IF($B$1="c",TABLA!E48,TABLA!L48)*($B$2-TABLA!A48))) -> 1.667 | C45: 959545.0131 | E45: 40 | F45: 0.2021949023 | K45: 40 | L45: 294155.0878 | M45: =SUM(L45:$L$120) -> 7082741.932 | N45: =SUM(M45:$M$120) -> 129490097.9 | O45: 649506.1011 | P45: =SUM(O45:O$120) -> 22875976.68
A46: 41 | B46: =(IF($B$1="c",TABLA!C49,TABLA!J49))*EXP(-(IF($B$1="c",TABLA!E49,TABLA!L49)*($B$2-TABLA!A49))) -> 1.776224767 | C46: 957945.4515 | E46: 41 | F46: 0.1887305174 | K46: 41 | L46: 285111.3896 | M46: =SUM(L46:$L$120) -> 6788586.844 | N46: =SUM(M46:$M$120) -> 122407356 | O46: 642128.0018 | P46: =SUM(O46:O$120) -> 22226470.58
A47: 42 | B47: =(IF($B$1="c",TABLA!C50,TABLA!J50))*EXP(-(IF($B$1="c",TABLA!E50,TABLA!L50)*($B$2-TABLA!A50))) -> 1.882506657 | C47: 956243.9251 | E47: 42 | F47: 0.1753960979 | K47: 42 | L47: 276315.5026 | M47: =SUM(L47:$L$120) -> 6503475.454 | N47: =SUM(M47:$M$120) -> 115618769.2 | O47: 634764.2592 | P47: =SUM(O47:O$120) -> 21584342.58
A48: 43 | B48: =(IF($B$1="c",TABLA!C51,TABLA!J51))*EXP(-(IF($B$1="c",TABLA!E51,TABLA!L51)*($B$2-TABLA!A51))) -> 1.957592399 | C48: 954443.7895 | E48: 43 | F48: 0.1622475243 | K48: 43 | L48: 267762.4629 | M48: =SUM(L48:$L$120) -> 6227159.952 | N48: =SUM(M48:$M$120) -> 109115293.7 | O48: 627418.1529 | P48: =SUM(O48:O$120) -> 20949578.32
A49: 44 | B49: =(IF($B$1="c",TABLA!C52,TABLA!J52))*EXP(-(IF($B$1="c",TABLA!E52,TABLA!L52)*($B$2-TABLA!A52))) -> 2.07338361 | C49: 952575.3776 | E49: 44 | F49: 0.1494311912 | K49: 44 | L49: 259454.6535 | M49: =SUM(L49:$L$120) -> 5959397.489 | N49: =SUM(M49:$M$120) -> 102888133.8 | O49: 620110.41 | P49: =SUM(O49:O$120) -> 20322160.17
A50: 45 | B50: =(IF($B$1="c",TABLA!C53,TABLA!J53))*EXP(-(IF($B$1="c",TABLA!E53,TABLA!L53)*($B$2-TABLA!A53))) -> 2.220169477 | C50: 950600.3234 | E50: 45 | F50: 0.1371732024 | K50: 45 | L50: 251375.4413 | M50: =SUM(L50:$L$120) -> 5699942.835 | N50: =SUM(M50:$M$120) -> 96928736.27 | O50: 612816.6766 | P50: =SUM(O50:O$120) -> 19702049.76
A51: 46 | B51: =(IF($B$1="c",TABLA!C54,TABLA!J54))*EXP(-(IF($B$1="c",TABLA!E54,TABLA!L54)*($B$2-TABLA!A54))) -> 2.415626029 | C51: 948489.8296 | E51: 46 | F51: 0.1252924699 | K51: 46 | L51: 243511.9856 | M51: =SUM(L51:$L$120) -> 5448567.394 | N51: =SUM(M51:$M$120) -> 91228793.43 | O51: 605519.6526 | P51: =SUM(O51:O$120) -> 19089233.08
A52: 47 | B52: =(IF($B$1="c",TABLA!C55,TABLA!J55))*EXP(-(IF($B$1="c",TABLA!E55,TABLA!L55)*($B$2-TABLA!A55))) -> 2.510936557 | C52: 946198.6329 | E52: 47 | F52: 0.1137718312 | K52: 47 | L52: 235848.3027 | M52: =SUM(L52:$L$120) -> 5205055.408 | N52: =SUM(M52:$M$120) -> 85780226.04 | O52: 598192.313 | P52: =SUM(O52:O$120) -> 18483713.43
A53: 48 | B53: =(IF($B$1="c",TABLA!C56,TABLA!J56))*EXP(-(IF($B$1="c",TABLA!E56,TABLA!L56)*($B$2-TABLA!A56))) -> 2.605957446 | C53: 943822.7882 | E53: 48 | F53: 0.1028168464 | K53: 48 | L53: 228403.983 | M53: =SUM(L53:$L$120) -> 4969207.106 | N53: =SUM(M53:$M$120) -> 80575170.63 | O53: 590897.1805 | P53: =SUM(O53:O$120) -> 17885521.12
A54: 49 | B54: =(IF($B$1="c",TABLA!C57,TABLA!J57))*EXP(-(IF($B$1="c",TABLA!E57,TABLA!L57)*($B$2-TABLA!A57))) -> 3.008661462 | C54: 941363.2261 | E54: 49 | F54: 0.09236285482 | K54: 49 | L54: 221173.565 | M54: =SUM(L54:$L$120) -> 4740803.123 | N54: =SUM(M54:$M$120) -> 75605963.52 | O54: 583635.4118 | P54: =SUM(O54:O$120) -> 17294623.94
A55: 50 | B55: =(IF($B$1="c",TABLA!C58,TABLA!J58))*EXP(-(IF($B$1="c",TABLA!E58,TABLA!L58)*($B$2-TABLA!A58))) -> 3.355137146 | C55: 938530.9829 | E55: 50 | F55: 0.08238285246 | K55: 50 | L55: 214085.5618 | M55: =SUM(L55:$L$120) -> 4519629.558 | N55: =SUM(M55:$M$120) -> 70865160.4 | O55: 576230.1353 | P55: =SUM(O55:O$120) -> 16710988.52
A56: 51 | B56: =(IF($B$1="c",TABLA!C59,TABLA!J59))*EXP(-(IF($B$1="c",TABLA!E59,TABLA!L59)*($B$2-TABLA!A59))) -> 3.703378315 | C56: 935382.0827 | E56: 51 | F56: 0.07292116579 | K56: 51 | L56: 207152.6945 | M56: =SUM(L56:$L$120) -> 4305543.996 | N56: =SUM(M56:$M$120) -> 66345530.84 | O56: 568721.1071 | P56: =SUM(O56:O$120) -> 16134758.39
A57: 52 | B57: =(IF($B$1="c",TABLA!C60,TABLA!J60))*EXP(-(IF($B$1="c",TABLA!E60,TABLA!L60)*($B$2-TABLA!A60))) -> 3.992915806 | C57: 931918.009 | E57: 52 | F57: 0.06403905769 | K57: 52 | L57: 200374.3007 | M57: =SUM(L57:$L$120) -> 4098391.301 | N57: =SUM(M57:$M$120) -> 62039986.85 | O57: 561113.802 | P57: =SUM(O57:O$120) -> 15566037.28
A58: 53 | B58: =(IF($B$1="c",TABLA!C61,TABLA!J61))*EXP(-(IF($B$1="c",TABLA!E61,TABLA!L61)*($B$2-TABLA!A61))) -> 4.717128655 | C58: 928196.9389 | E58: 53 | F58: 0.05538668898 | K58: 53 | L58: 193761.3816 | M58: =SUM(L58:$L$120) -> 3898017 | N58: =SUM(M58:$M$120) -> 57941595.55 | O58: 553447.3672 | P58: =SUM(O58:O$120) -> 15004923.48
A59: 54 | B59: =(IF($B$1="c",TABLA!C62,TABLA!J62))*EXP(-(IF($B$1="c",TABLA!E62,TABLA!L62)*($B$2-TABLA!A62))) -> 4.950995151 | C59: 923818.5145 | E59: 54 | F59: 0.04709127221 | K59: 54 | L59: 187230.4701 | M59: =SUM(L59:$L$120) -> 3704255.619 | N59: =SUM(M59:$M$120) -> 54043578.55 | O59: 545488.7558 | P59: =SUM(O59:O$120) -> 14451476.11
A60: 55 | B60: =(IF($B$1="c",TABLA!C63,TABLA!J63))*EXP(-(IF($B$1="c",TABLA!E63,TABLA!L63)*($B$2-TABLA!A63))) -> 5.255482904 | C60: 919244.6935 | E60: 55 | F60: 0.03924009787 | K60: 55 | L60: 180877.1776 | M60: =SUM(L60:$L$120) -> 3517025.149 | N60: =SUM(M60:$M$120) -> 50339322.93 | O60: 537518.2568 | P60: =SUM(O60:O$120) -> 13905987.36
A61: 56 | B61: =(IF($B$1="c",TABLA!C64,TABLA!J64))*EXP(-(IF($B$1="c",TABLA!E64,TABLA!L64)*($B$2-TABLA!A64))) -> 5.554273216 | C61: 914413.6187 | E61: 56 | F61: 0.03198873028 | K61: 56 | L61: 174686.0007 | M61: =SUM(L61:$L$120) -> 3336147.971 | N61: =SUM(M61:$M$120) -> 46822297.78 | O61: 529502.1413 | P61: =SUM(O61:O$120) -> 13368469.1
A62: 57 | B62: =(IF($B$1="c",TABLA!C65,TABLA!J65))*EXP(-(IF($B$1="c",TABLA!E65,TABLA!L65)*($B$2-TABLA!A65))) -> 5.972303237 | C62: 909334.7156 | E62: 57 | F62: 0.02541207408 | K62: 57 | L62: 168656.065 | M62: =SUM(L62:$L$120) -> 3161461.971 | N62: =SUM(M62:$M$120) -> 43486149.81 | O62: 521448.8976 | P62: =SUM(O62:O$120) -> 12838966.96
A63: 58 | B63: =(IF($B$1="c",TABLA!C66,TABLA!J66))*EXP(-(IF($B$1="c",TABLA!E66,TABLA!L66)*($B$2-TABLA!A66))) -> 6.319308979 | C63: 903903.893 | E63: 58 | F63: 0.01957823864 | K63: 58 | L63: 162765.825 | M63: =SUM(L63:$L$120) -> 2992805.906 | N63: =SUM(M63:$M$120) -> 40324687.84 | O63: 513302.2715 | P63: =SUM(O63:O$120) -> 12317518.06
A64: 59 | B64: =(IF($B$1="c",TABLA!C67,TABLA!J67))*EXP(-(IF($B$1="c",TABLA!E67,TABLA!L67)*($B$2-TABLA!A67))) -> 6.514684818 | C64: 898191.845 | E64: 59 | F64: 0.01454158311 | K64: 59 | L64: 157026.4636 | M64: =SUM(L64:$L$120) -> 2830040.081 | N64: =SUM(M64:$M$120) -> 37331881.93 | O64: 505106.531 | P64: =SUM(O64:O$120) -> 11804215.79
A65: 60 | B65: =(IF($B$1="c",TABLA!C68,TABLA!J68))*EXP(-(IF($B$1="c",TABLA!E68,TABLA!L68)*($B$2-TABLA!A68))) -> 7.081337764 | C65: 892340.4082 | E65: 60 | F65: 0.01032692158 | K65: 60 | L65: 151459.6948 | M65: =SUM(L65:$L$120) -> 2673013.617 | N65: =SUM(M65:$M$120) -> 34501841.85 | O65: 496943.9219 | P65: =SUM(O65:O$120) -> 11299109.26
A66: 61 | B66: =(IF($B$1="c",TABLA!C69,TABLA!J69))*EXP(-(IF($B$1="c",TABLA!E69,TABLA!L69)*($B$2-TABLA!A69))) -> 7.664204371 | C66: 886021.4444 | E66: 61 | F66: 0.006943192141 | K66: 61 | L66: 146006.9491 | M66: =SUM(L66:$L$120) -> 2521553.922 | N66: =SUM(M66:$M$120) -> 31828828.23 | O66: 488634.3612 | P66: =SUM(O66:O$120) -> 10802165.34
A67: 62 | B67: =(IF($B$1="c",TABLA!C70,TABLA!J70))*EXP(-(IF($B$1="c",TABLA!E70,TABLA!L70)*($B$2-TABLA!A70))) -> 8.170732211 | C67: 879230.795 | E67: 62 | F67: 0.00430619473 | K67: 62 | L67: 140667.8854 | M67: =SUM(L67:$L$120) -> 2375546.973 | N67: =SUM(M67:$M$120) -> 29307274.31 | O67: 480181.7039 | P67: =SUM(O67:O$120) -> 10313530.98
A68: 63 | B68: =(IF($B$1="c",TABLA!C71,TABLA!J71))*EXP(-(IF($B$1="c",TABLA!E71,TABLA!L71)*($B$2-TABLA!A71))) -> 8.711839942 | C68: 872046.8356 | E68: 63 | F68: 0.002565300539 | K68: 63 | L68: 135454.8794 | M68: =SUM(L68:$L$120) -> 2234879.088 | N68: =SUM(M68:$M$120) -> 26931727.34 | O68: 471634.4011 | P68: =SUM(O68:O$120) -> 9833349.272
A69: 64 | B69: =(IF($B$1="c",TABLA!C72,TABLA!J72))*EXP(-(IF($B$1="c",TABLA!E72,TABLA!L72)*($B$2-TABLA!A72))) -> 9.548699036 | C69: 864449.7031 | E69: 64 | F69: 0.001461025827 | K69: 64 | L69: =((1+$M$1)^-K69)*C69 -> 130363.9012 | M69: =SUM(L69:$L$120) -> 2099424.208 | N69: =SUM(M69:$M$120) -> 24696848.25 | O69: 462986.5142 | P69: =SUM(O69:O$120) -> 9361714.871
A70: 65 | B70: =(IF($B$1="c",TABLA!C73,TABLA!J73))*EXP(-(IF($B$1="c",TABLA!E73,TABLA!L73)*($B$2-TABLA!A73))) -> 10.50049003 | C70: 856195.3331 | E70: 65 | F70: =((1+$G$2)^-E70)*(LOOKUP($G$1+E70,A:A,C:C)/LOOKUP($G$1,A:A,C:C)) -> 0.000791168181 | K70: 65 | L70: 125358.3452 | M70: =SUM(L70:$L$120) -> 1969060.307 | N70: =SUM(M70:$M$120) -> 22597424.04 | O70: =($M$2^K70)*L70 -> 454113.5021 | P70: =SUM(O70:O$120) -> 8898728.356
A71: 66 | B71: =(IF($B$1="c",TABLA!C74,TABLA!J74))*EXP(-(IF($B$1="c",TABLA!E74,TABLA!L74)*($B$2-TABLA!A74))) -> 11.19003407 | C71: =C70*(1-(B70/1000)) -> 847204.8625 | E71: 66 | F71: 0.0004047155539 | K71: 66 | L71: 120429.1467 | M71: =SUM(L71:$L$120) -> 1843701.962 | N71: =SUM(M71:$M$120) -> 20628363.74 | O71: 444982.5142 | P71: =SUM(O71:O$120) -> 8444614.854
A72: 67 | B72: =(IF($B$1="c",TABLA!C75,TABLA!J75))*EXP(-(IF($B$1="c",TABLA!E75,TABLA!L75)*($B$2-TABLA!A75))) -> 12.12330423 | C72: 837724.6112 | E72: 67 | F72: 0.000194050892 | K72: 67 | L72: 115613.1461 | M72: =SUM(L72:$L$120) -> 1723272.815 | N72: =SUM(M72:$M$120) -> 18784661.77 | O72: 435731.2695 | P72: =SUM(O72:O$120) -> 7999632.34
A73: 68 | B73: =(IF($B$1="c",TABLA!C76,TABLA!J76))*EXP(-(IF($B$1="c",TABLA!E76,TABLA!L76)*($B$2-TABLA!A76))) -> 13.18069618 | C73: 827568.6209 | E73: 68 | F73: 8.638561675e-05 | K73: 68 | L73: 110884.9832 | M73: =SUM(L73:$L$120) -> 1607659.669 | N73: =SUM(M73:$M$120) -> 17061388.96 | O73: 426269.6525 | P73: =SUM(O73:O$120) -> 7563901.071
A74: 69 | B74: =(IF($B$1="c",TABLA!C77,TABLA!J77))*EXP(-(IF($B$1="c",TABLA!E77,TABLA!L77)*($B$2-TABLA!A77))) -> 14.16073735 | C74: 816660.6904 | E74: 69 | F74: 3.528592449e-05 | K74: 69 | L74: 106236.3514 | M74: =SUM(L74:$L$120) -> 1496774.686 | N74: =SUM(M74:$M$120) -> 15453729.29 | O74: 416567.1303 | P74: =SUM(O74:O$120) -> 7137631.418
A75: 70 | B75: =(IF($B$1="c",TABLA!C78,TABLA!J78))*EXP(-(IF($B$1="c",TABLA!E78,TABLA!L78)*($B$2-TABLA!A78))) -> 15.0780566 | C75: 805096.1728 | E75: 70 | F75: 1.302783739e-05 | K75: 70 | L75: 101681.5207 | M75: =SUM(L75:$L$120) -> 1390538.334 | N75: =SUM(M75:$M$120) -> 13956954.6 | O75: 406681.1623 | P75: =SUM(O75:O$120) -> 6721064.288
A76: 71 | B76: =(IF($B$1="c",TABLA!C79,TABLA!J79))*EXP(-(IF($B$1="c",TABLA!E79,TABLA!L79)*($B$2-TABLA!A79))) -> 16.32619627 | C76: 792956.8872 | E76: 71 | F76: 4.262771635e-06 | K76: 71 | L76: 97231.41844 | M76: =SUM(L76:$L$120) -> 1288856.814 | N76: =SUM(M76:$M$120) -> 12566416.27 | O76: 396660.3735 | P76: =SUM(O76:O$120) -> 6314383.126
A77: 72 | B77: =(IF($B$1="c",TABLA!C80,TABLA!J80))*EXP(-(IF($B$1="c",TABLA!E80,TABLA!L80)*($B$2-TABLA!A80))) -> 17.98222449 | C77: 780010.9174 | E77: 72 | F77: 1.203252135e-06 | K77: 72 | L77: 92858.25167 | M77: =SUM(L77:$L$120) -> 1191625.395 | N77: =SUM(M77:$M$120) -> 11277559.46 | O77: 386396.2202 | P77: =SUM(O77:O$120) -> 5917722.752
A78: 73 | B78: =(IF($B$1="c",TABLA!C81,TABLA!J81))*EXP(-(IF($B$1="c",TABLA!E81,TABLA!L81)*($B$2-TABLA!A81))) -> 19.72754121 | C78: 765984.586 | E78: 73 | F78: 2.817993137e-07 | K78: 73 | L78: 88532.47936 | M78: =SUM(L78:$L$120) -> 1098767.144 | N78: =SUM(M78:$M$120) -> 10085934.06 | O78: 375763.9959 | P78: =SUM(O78:O$120) -> 5531326.532
A79: 74 | B79: =(IF($B$1="c",TABLA!C82,TABLA!J82))*EXP(-(IF($B$1="c",TABLA!E82,TABLA!L82)*($B$2-TABLA!A82))) -> 21.87623871 | C79: 750873.5935 | E79: 74 | F79: 0 | K79: 74 | L79: 84258.20508 | M79: =SUM(L79:$L$120) -> 1010234.664 | N79: =SUM(M79:$M$120) -> 8987166.917 | O79: 364774.8719 | P79: =SUM(O79:O$120) -> 5155562.536
A80: 75 | B80: =(IF($B$1="c",TABLA!C83,TABLA!J83))*EXP(-(IF($B$1="c",TABLA!E83,TABLA!L83)*($B$2-TABLA!A83))) -> 24.15805636 | C80: 734447.3035 | E80: 75 | F80: 0 | K80: 75 | L80: 80014.51696 | M80: =SUM(L80:$L$120) -> 925976.4591 | N80: =SUM(M80:$M$120) -> 7976932.252 | O80: 353330.9409 | P80: =SUM(O80:O$120) -> 4790787.664
A81: 76 | B81: =(IF($B$1="c",TABLA!C84,TABLA!J84))*EXP(-(IF($B$1="c",TABLA!E84,TABLA!L84)*($B$2-TABLA!A84))) -> 26.47923957 | C81: 716704.4842 | E81: 76 | F81: 0 | K81: 76 | L81: 75807.30267 | M81: =SUM(L81:$L$120) -> 845961.9421 | N81: =SUM(M81:$M$120) -> 7050955.793 | O81: 341447.6264 | P81: =SUM(O81:O$120) -> 4437456.723
A82: 77 | B82: =(IF($B$1="c",TABLA!C85,TABLA!J85))*EXP(-(IF($B$1="c",TABLA!E85,TABLA!L85)*($B$2-TABLA!A85))) -> 28.98793335 | C82: 697726.6944 | E82: 77 | F82: 0 | K82: 77 | L82: 71650.46887 | M82: =SUM(L82:$L$120) -> 770154.6395 | N82: =SUM(M82:$M$120) -> 6204993.851 | O82: 329179.1067 | P82: =SUM(O82:O$120) -> 4096009.097
A83: 78 | B83: =(IF($B$1="c",TABLA!C86,TABLA!J86))*EXP(-(IF($B$1="c",TABLA!E86,TABLA!L86)*($B$2-TABLA!A86))) -> 31.81796883 | C83: 677501.0395 | F83: =SUM(F5:F82) -> 24.07825744 | K83: 78 | L83: 67547.05811 | M83: =SUM(L83:$L$120) -> 698504.1706 | N83: =SUM(M83:$M$120) -> 5434839.212 | O83: 316533.614 | P83: =SUM(O83:O$120) -> 3766829.99
A84: 79 | B84: =(IF($B$1="c",TABLA!C87,TABLA!J87))*EXP(-(IF($B$1="c",TABLA!E87,TABLA!L87)*($B$2-TABLA!A87))) -> 35.15498185 | C84: 655944.3325 | K84: 79 | L84: 63493.05624 | M84: =SUM(L84:$L$120) -> 630957.1125 | N84: =SUM(M84:$M$120) -> 4736335.041 | O84: 303486.7966 | P84: =SUM(O84:O$120) -> 3450296.376
A85: 80 | B85: =(IF($B$1="c",TABLA!C88,TABLA!J88))*EXP(-(IF($B$1="c",TABLA!E88,TABLA!L88)*($B$2-TABLA!A88))) -> 38.58885265 | C85: 632884.6214 | K85: 80 | L85: 59476.65922 | M85: =SUM(L85:$L$120) -> 567464.0562 | N85: =SUM(M85:$M$120) -> 4105377.929 | O85: 289974.8332 | P85: =SUM(O85:O$120) -> 3146809.579
A86: 81 | B86: =(IF($B$1="c",TABLA!C89,TABLA!J89))*EXP(-(IF($B$1="c",TABLA!E89,TABLA!L89)*($B$2-TABLA!A89))) -> 42.77282056 | C86: 608462.33 | K86: 81 | L86: 55516.04193 | M86: =SUM(L86:$L$120) -> 507987.397 | N86: =SUM(M86:$M$120) -> 3537913.872 | O86: 276078.3863 | P86: =SUM(O86:O$120) -> 2856834.746
A87: 82 | B87: =(IF($B$1="c",TABLA!C90,TABLA!J90))*EXP(-(IF($B$1="c",TABLA!E90,TABLA!L90)*($B$2-TABLA!A90))) -> 47.21398024 | C87: 582436.68 | K87: 82 | L87: 51593.65459 | M87: =SUM(L87:$L$120) -> 452471.3551 | N87: =SUM(M87:$M$120) -> 3029926.475 | O87: 261704.0094 | P87: =SUM(O87:O$120) -> 2580756.36
A88: 83 | B88: =(IF($B$1="c",TABLA!C91,TABLA!J91))*EXP(-(IF($B$1="c",TABLA!E91,TABLA!L91)*($B$2-TABLA!A91))) -> 51.36224659 | C88: 554937.5261 | K88: 83 | L88: 47725.93476 | M88: =SUM(L88:$L$120) -> 400877.7005 | N88: =SUM(M88:$M$120) -> 2577455.12 | O88: 246927.0679 | P88: =SUM(O88:O$120) -> 2319052.35
A89: 84 | B89: =(IF($B$1="c",TABLA!C92,TABLA!J92))*EXP(-(IF($B$1="c",TABLA!E92,TABLA!L92)*($B$2-TABLA!A92))) -> 54.49192159 | C89: 526434.688 | K89: 84 | L89: 43955.94517 | M89: =SUM(L89:$L$120) -> 353151.7657 | N89: =SUM(M89:$M$120) -> 2176577.42 | O89: 231970.1221 | P89: =SUM(O89:O$120) -> 2072125.283
A90: 85 | B90: =(IF($B$1="c",TABLA!C93,TABLA!J93))*EXP(-(IF($B$1="c",TABLA!E93,TABLA!L93)*($B$2-TABLA!A93))) -> 59.20951253 | C90: 497748.2503 | K90: 85 | L90: 40350.19539 | M90: =SUM(L90:$L$120) -> 309195.8206 | N90: =SUM(M90:$M$120) -> 1823425.654 | O90: 217200.2105 | P90: =SUM(O90:O$120) -> 1840155.16
A91: 86 | B91: =(IF($B$1="c",TABLA!C94,TABLA!J94))*EXP(-(IF($B$1="c",TABLA!E94,TABLA!L94)*($B$2-TABLA!A94))) -> 64.70846752 | C91: 468276.819 | K91: 86 | L91: 36855.41747 | M91: =SUM(L91:$L$120) -> 268845.6252 | N91: =SUM(M91:$M$120) -> 1514229.834 | O91: 202356.0095 | P91: =SUM(O91:O$120) -> 1622954.95
A92: 87 | B92: =(IF($B$1="c",TABLA!C95,TABLA!J95))*EXP(-(IF($B$1="c",TABLA!E95,TABLA!L95)*($B$2-TABLA!A95))) -> 69.17775106 | C92: 437975.3437 | K92: 87 | L92: 33466.563 | M92: =SUM(L92:$L$120) -> 231990.2077 | N92: =SUM(M92:$M$120) -> 1245384.208 | O92: 187424.3684 | P92: =SUM(O92:O$120) -> 1420598.94
A93: 88 | B93: =(IF($B$1="c",TABLA!C96,TABLA!J96))*EXP(-(IF($B$1="c",TABLA!E96,TABLA!L96)*($B$2-TABLA!A96))) -> 74.72613874 | C93: 407677.1944 | K93: 88 | L93: 30244.09848 | M93: =SUM(L93:$L$120) -> 198523.6447 | N93: =SUM(M93:$M$120) -> 1013394.001 | O93: 172764.9976 | P93: =SUM(O93:O$120) -> 1233174.572
A94: 89 | B94: =(IF($B$1="c",TABLA!C97,TABLA!J97))*EXP(-(IF($B$1="c",TABLA!E97,TABLA!L97)*($B$2-TABLA!A97))) -> 81.29368463 | C94: 377213.0518 | K94: 89 | L94: 27169.00367 | M94: =SUM(L94:$L$120) -> 168279.5462 | N94: =SUM(M94:$M$120) -> 814870.3559 | O94: 158302.9468 | P94: =SUM(O94:O$120) -> 1060409.574
A95: 90 | B95: =(IF($B$1="c",TABLA!C98,TABLA!J98))*EXP(-(IF($B$1="c",TABLA!E98,TABLA!L98)*($B$2-TABLA!A98))) -> 88.29570079 | C95: 346548.0129 | K95: 90 | L95: 24233.3352 | M95: =SUM(L95:$L$120) -> 141110.5426 | N95: =SUM(M95:$M$120) -> 646590.8097 | O95: 144021.9372 | P95: =SUM(O95:O$120) -> 902106.6276
A96: 91 | B96: =(IF($B$1="c",TABLA!C99,TABLA!J99))*EXP(-(IF($B$1="c",TABLA!E99,TABLA!L99)*($B$2-TABLA!A99))) -> 95.45838018 | C96: 315949.3133 | K96: 91 | L96: 21450.13193 | M96: =SUM(L96:$L$120) -> 116877.2074 | N96: =SUM(M96:$M$120) -> 505480.2671 | O96: 130030.6094 | P96: =SUM(O96:O$120) -> 758084.6905
A97: 92 | B97: =(IF($B$1="c",TABLA!C100,TABLA!J100))*EXP(-(IF($B$1="c",TABLA!E100,TABLA!L100)*($B$2-TABLA!A100))) -> 109.1641305 | C97: 285789.3036 | K97: 92 | L97: 18837.41464 | M97: =SUM(L97:$L$120) -> 95427.07544 | N97: =SUM(M97:$M$120) -> 388603.0597 | O97: 116476.1748 | P97: =SUM(O97:O$120) -> 628054.0811
A98: 93 | B98: =(IF($B$1="c",TABLA!C101,TABLA!J101))*EXP(-(IF($B$1="c",TABLA!E101,TABLA!L101)*($B$2-TABLA!A101))) -> 124.2659332 | C98: 254591.3628 | K98: 93 | L98: 16292.27636 | M98: =SUM(L98:$L$120) -> 76589.66081 | N98: =SUM(M98:$M$120) -> 293175.9843 | O98: 102753.7646 | P98: =SUM(O98:O$120) -> 511577.9063
A99: 94 | B99: =(IF($B$1="c",TABLA!C102,TABLA!J102))*EXP(-(IF($B$1="c",TABLA!E102,TABLA!L102)*($B$2-TABLA!A102))) -> 141.7241688 | C99: 222954.3295 | K99: 94 | L99: 13852.13731 | M99: =SUM(L99:$L$120) -> 60297.38445 | N99: =SUM(M99:$M$120) -> 216586.3235 | O99: 89111.33163 | P99: =SUM(O99:O$120) -> 408824.1417
A100: 95 | B100: =(IF($B$1="c",TABLA!C103,TABLA!J103))*EXP(-(IF($B$1="c",TABLA!E103,TABLA!L103)*($B$2-TABLA!A103))) -> 160.3386846 | C100: 191356.3125 | K100: 95 | L100: 11542.67443 | M100: =SUM(L100:$L$120) -> 46445.24714 | N100: =SUM(M100:$M$120) -> 156288.9391 | O100: 75739.55754 | P100: =SUM(O100:O$120) -> 319712.8101
A101: 96 | B101: =(IF($B$1="c",TABLA!C104,TABLA!J104))*EXP(-(IF($B$1="c",TABLA!E104,TABLA!L104)*($B$2-TABLA!A104))) -> 181.7606993 | C101: 160674.493 | K101: 96 | L101: =((1+$M$1)^-K101)*C101 -> 9409.647765 | M101: =SUM(L101:$L$120) -> 34902.5727 | N101: =SUM(M101:$M$120) -> 109843.6919 | O101: 62978.14373 | P101: =SUM(O101:O$120) -> 243973.2525
A102: 97 | B102: =(IF($B$1="c",TABLA!C105,TABLA!J105))*EXP(-(IF($B$1="c",TABLA!E105,TABLA!L105)*($B$2-TABLA!A105))) -> 206.4565159 | C102: 131470.1848 | K102: 97 | L102: 7475.09088 | M102: =SUM(L102:$L$120) -> 25492.92494 | N102: =SUM(M102:$M$120) -> 74941.11921 | O102: 51030.88945 | P102: =SUM(O102:O$120) -> 180995.1088
A103: 98 | B103: =(IF($B$1="c",TABLA!C106,TABLA!J106))*EXP(-(IF($B$1="c",TABLA!E106,TABLA!L106)*($B$2-TABLA!A106))) -> 234.9755827 | C103: 104327.3085 | K103: 98 | L103: 5759.038506 | M103: =SUM(L103:$L$120) -> 18017.83406 | N103: =SUM(M103:$M$120) -> 49448.19427 | O103: 40102.07224 | P103: =SUM(O103:O$120) -> 129964.2194
A104: 99 | B104: =(IF($B$1="c",TABLA!C107,TABLA!J107))*EXP(-(IF($B$1="c",TABLA!E107,TABLA!L107)*($B$2-TABLA!A107))) -> 268.5301767 | C104: 79812.93841 | K104: 99 | L104: 4277.480657 | M104: =SUM(L104:$L$120) -> 12258.79555 | N104: =SUM(M104:$M$120) -> 31430.36022 | O104: 30381.20945 | P104: =SUM(O104:O$120) -> 89862.14713
A105: 100 | B105: =(IF($B$1="c",TABLA!C108,TABLA!J108))*EXP(-(IF($B$1="c",TABLA!E108,TABLA!L108)*($B$2-TABLA!A108))) -> 307.490829 | C105: 58380.75596 | K105: 100 | L105: 3037.716525 | M105: =SUM(L105:$L$120) -> 7981.314894 | N105: =SUM(M105:$M$120) -> 19171.56467 | O105: 22007.18123 | P105: =SUM(O105:O$120) -> 59480.93768
A106: 101 | B106: =(IF($B$1="c",TABLA!C109,TABLA!J109))*EXP(-(IF($B$1="c",TABLA!E109,TABLA!L109)*($B$2-TABLA!A109))) -> 361.19 | C106: 40429.20891 | K106: 101 | L106: 2042.375294 | M106: =SUM(L106:$L$120) -> 4943.598369 | N106: =SUM(M106:$M$120) -> 11190.24977 | O106: 15092.21197 | P106: =SUM(O106:O$120) -> 37473.75644
A107: 102 | B107: =(IF($B$1="c",TABLA!C110,TABLA!J110))*EXP(-(IF($B$1="c",TABLA!E110,TABLA!L110)*($B$2-TABLA!A110))) -> 386.405 | C107: 25826.58294 | K107: 102 | L107: 1266.689089 | M107: =SUM(L107:$L$120) -> 2901.223076 | N107: =SUM(M107:$M$120) -> 6246.651402 | O107: 9547.453443 | P107: =SUM(O107:O$120) -> 22381.54448
A108: 103 | B108: =(IF($B$1="c",TABLA!C111,TABLA!J111))*EXP(-(IF($B$1="c",TABLA!E111,TABLA!L111)*($B$2-TABLA!A111))) -> 413.38 | C108: 15847.06216 | K108: 103 | L108: 754.5962052 | M108: =SUM(L108:$L$120) -> 1634.533987 | N108: =SUM(M108:$M$120) -> 3345.428326 | O108: 5801.39329 | P108: =SUM(O108:O$120) -> 12834.09103
A109: 104 | B109: =(IF($B$1="c",TABLA!C112,TABLA!J112))*EXP(-(IF($B$1="c",TABLA!E112,TABLA!L112)*($B$2-TABLA!A112))) -> 442.239 | C109: 9296.203605 | K109: 104 | L109: 429.7681805 | M109: =SUM(L109:$L$120) -> 879.9377816 | N109: =SUM(M109:$M$120) -> 1710.894339 | O109: 3370.172426 | P109: =SUM(O109:O$120) -> 7032.697744
A110: 105 | B110: =(IF($B$1="c",TABLA!C113,TABLA!J113))*EXP(-(IF($B$1="c",TABLA!E113,TABLA!L113)*($B$2-TABLA!A113))) -> 473.112 | C110: 5185.059819 | K110: 105 | L110: 232.7261457 | M110: =SUM(L110:$L$120) -> 450.1696012 | N110: =SUM(M110:$M$120) -> 830.9565575 | O110: 1861.500735 | P110: =SUM(O110:O$120) -> 3662.525318
A111: 106 | B111: =(IF($B$1="c",TABLA!C114,TABLA!J114))*EXP(-(IF($B$1="c",TABLA!E114,TABLA!L114)*($B$2-TABLA!A114))) -> 506.141 | C111: 2731.945798 | K111: 106 | L111: 119.0491393 | M111: =SUM(L111:$L$120) -> 217.4434554 | N111: =SUM(M111:$M$120) -> 380.7869563 | O111: 971.280046 | P111: =SUM(O111:O$120) -> 1801.024583
A112: 107 | B112: =(IF($B$1="c",TABLA!C115,TABLA!J115))*EXP(-(IF($B$1="c",TABLA!E115,TABLA!L115)*($B$2-TABLA!A115))) -> 541.475 | C112: 1349.19602 | K112: 107 | L112: 57.08105717 | M112: =SUM(L112:$L$120) -> 98.39431612 | N112: =SUM(M112:$M$120) -> 163.3435009 | O112: 475.0183496 | P112: =SUM(O112:O$120) -> 829.7445371
A113: 108 | B113: =(IF($B$1="c",TABLA!C116,TABLA!J116))*EXP(-(IF($B$1="c",TABLA!E116,TABLA!L116)*($B$2-TABLA!A116))) -> 579.276 | C113: 618.640105 | K113: 108 | L113: 25.41076868 | M113: =SUM(L113:$L$120) -> 41.31325895 | N113: =SUM(M113:$M$120) -> 64.94918481 | O113: 215.69315 | P113: =SUM(O113:O$120) -> 354.7261875
A114: 109 | B114: =(IF($B$1="c",TABLA!C117,TABLA!J117))*EXP(-(IF($B$1="c",TABLA!E117,TABLA!L117)*($B$2-TABLA!A117))) -> 619.716 | C114: 260.2767395 | K114: 109 | L114: 10.37953422 | M114: =SUM(L114:$L$120) -> 15.90249027 | N114: =SUM(M114:$M$120) -> 23.63592587 | O114: 89.86624325 | P114: =SUM(O114:O$120) -> 139.0330375
A115: 110 | B115: =(IF($B$1="c",TABLA!C118,TABLA!J118))*EXP(-(IF($B$1="c",TABLA!E118,TABLA!L118)*($B$2-TABLA!A118))) -> 662.979 | C115: 98.97907961 | K115: 110 | L115: 3.83220465 | M115: =SUM(L115:$L$120) -> 5.522956054 | N115: =SUM(M115:$M$120) -> 7.733435599 | O115: 33.8429013 | P115: =SUM(O115:O$120) -> 49.16679427
A116: 111 | B116: =(IF($B$1="c",TABLA!C119,TABLA!J119))*EXP(-(IF($B$1="c",TABLA!E119,TABLA!L119)*($B$2-TABLA!A119))) -> 709.262 | C116: 33.35802839 | K116: 111 | L116: 1.253915964 | M116: =SUM(L116:$L$120) -> 1.690751404 | N116: =SUM(M116:$M$120) -> 2.210479545 | O116: 11.29503282 | P116: =SUM(O116:O$120) -> 15.32389298
A117: 112 | B117: =(IF($B$1="c",TABLA!C120,TABLA!J120))*EXP(-(IF($B$1="c",TABLA!E120,TABLA!L120)*($B$2-TABLA!A120))) -> 758.776 | C117: 9.698446458 | K117: 112 | L117: 0.3539427375 | M117: =SUM(L117:$L$120) -> 0.4368354394 | N117: =SUM(M117:$M$120) -> 0.5197281413 | O117: 3.252012774 | P117: =SUM(O117:O$120) -> 4.028860153
A118: 113 | B118: =(IF($B$1="c",TABLA!C121,TABLA!J121))*EXP(-(IF($B$1="c",TABLA!E121,TABLA!L121)*($B$2-TABLA!A121))) -> 1000 | C118: 2.339498048 | K118: 113 | L118: 0.08289270186 | M118: =SUM(L118:$L$120) -> 0.08289270186 | N118: =SUM(M118:$M$120) -> 0.08289270186 | O118: 0.7768473787 | P118: =SUM(O118:O$120) -> 0.7768473787
A119: 114 | B119: =(IF($B$1="c",TABLA!C122,TABLA!J122))*EXP(-(IF($B$1="c",TABLA!E122,TABLA!L122)*($B$2-TABLA!A122))) -> 0 | C119: 0 | K119: 114 | L119: 0 | M119: =SUM(L119:$L$120) -> 0 | N119: =SUM(M119:$M$120) -> 0 | O119: 0 | P119: =SUM(O119:O$120) -> 0
A120: 115 | B120: =(IF($B$1="c",TABLA!C123,TABLA!J123))*EXP(-(IF($B$1="c",TABLA!E123,TABLA!L123)*($B$2-TABLA!A123))) -> 0 | C120: 0 | K120: 115 | L120: 0 | M120: =SUM(L120:$L$120) -> 0 | N120: =SUM(M120:$M$120) -> 0 | O120: 0 | P120: =SUM(O120:O$120) -> 0

Sheet EMAKUMEAK
A1: Kontratua | B1: c | E1: nEy | F1: y | G1: =J1 -> 0 | H1: Urteroko errenta | L1: i | M1: 0.03 | R1: Kapital Diferitua
A2: Generazioa | B2: 1970 | E2: =((1+$G$2)^-$G$3)*(LOOKUP($G$1+$G$3,A:A,C:C)/LOOKUP($G$1,A:A,C:C)) -> 0.5436581274 | F2: i | G2: 0.03 | H2: ay | I2: =SUM(F6:F82) -> 29.22759316 | L2: β | M2: =$S$23 -> 1.02 | R2: n | S2: 20
F3: n | G3: 20 | H3: äy | I3: =SUM(F5:F82) -> 30.22759316 | R3: y | S3: 40
A4: Edad | B4: qy | C4: ly | E4: t | F4: tEy | H4: ay:n | K4: y | L4: Dy | M4: Ny | N4: Sy | O4: VDy | P4: VNy | R4: nEy | S4: =VLOOKUP($S$3+$S$2,K5:L120,2,FALSE)/VLOOKUP($S$3,K5:L120,2,FALSE) -> 0.5440036636
A5: 0 | B5: =(IF($B$1="c",TABLA!$D8,TABLA!$K8))*EXP(-(IF($B$1="c",TABLA!$F8,TABLA!$M8)*($B$2-TABLA!$A8))) -> 12.06198478 | C5: 1000000 | E5: 0 | F5: =((1+$G$2)^-E5)*(LOOKUP($G$1+E5,A:A,C:C)/LOOKUP($G$1,A:A,C:C)) -> 1 | K5: 0 | L5: =((1+$M$1)^-K5)*C5 -> 1000000 | M5: =SUM(L5:$L$120) -> 31313336.73 | N5: =SUM(M5:$M$120) -> 863140764.9 | O5: =($M$2^K5)*L5 -> 1000000 | P5: =SUM(O5:O$120) -> 59275079.99 | R5: Errenta konstantea
A6: 1 | B6: =(IF($B$1="c",TABLA!$D9,TABLA!$K9))*EXP(-(IF($B$1="c",TABLA!$F9,TABLA!$M9)*($B$2-TABLA!$A9))) -> 0.9506001163 | C6: =C5*(1-(B5/1000)) -> 987938.0152 | E6: 1 | F6: =((1+$G$2)^-E6)*(LOOKUP($G$1+E6,A:A,C:C)/LOOKUP($G$1,A:A,C:C)) -> 0.9591631216 | K6: 1 | L6: 959163.1216 | M6: =SUM(L6:$L$120) -> 30313336.73 | N6: =SUM(M6:$M$120) -> 831827428.2 | O6: =($M$2^K6)*L6 -> 978346.384 | P6: =SUM(O6:O$120) -> 58275079.99
A7: 2 | B7: =(IF($B$1="c",TABLA!$D10,TABLA!$K10))*EXP(-(IF($B$1="c",TABLA!$F10,TABLA!$M10)*($B$2-TABLA!$A10))) -> 0.6773327789 | C7: =C6*(1-(B6/1000)) -> 986998.8812 | E7: 2 | F7: 0.9303411078 | K7: 2 | L7: 930341.1078 | M7: =SUM(L7:$L$120) -> 29354173.61 | N7: =SUM(M7:$M$120) -> 801514091.4 | O7: 967926.8885 | P7: =SUM(O7:O$120) -> 57296733.6 | R7: y | S7: 40 | T7: n | U7: 20 | V7: d | W7: 20 | Z7: m | AA7: 12
A8: 3 | B8: =(IF($B$1="c",TABLA!$D11,TABLA!$K11))*EXP(-(IF($B$1="c",TABLA!$F11,TABLA!$M11)*($B$2-TABLA!$A11))) -> 0.4387572531 | C8: 986330.3545 | E8: 3 | F8: 0.9026319973 | K8: 3 | L8: 902631.9973 | M8: =SUM(L8:$L$120) -> 28423832.5 | N8: =SUM(M8:$M$120) -> 772159917.8 | O8: 957880.2966 | P8: =SUM(O8:O$120) -> 56328806.71 | R8: ay | S8: =VLOOKUP($S$7+1,$K$4:$M$120,3,FALSE)/VLOOKUP($S$7,$K$4:$M$120,2,FALSE) -> 25.43056172 | T8: ay:n | U8: =(VLOOKUP($S$7+1,$K$4:$M$120,3,FALSE)-VLOOKUP($S$7+$U$7+1,$K$4:$M$120,3,FALSE))/VLOOKUP($S$7,$K$4:$M$120,2,FALSE) -> 14.78366731 | V8: d/ay | W8: =VLOOKUP($S$7+$W$7+1,$K$4:$M$120,3,FALSE)/VLOOKUP($S$7,$K$4:$M$120,2,FALSE) -> 10.6468944 | X8: d/ayn | Y8: =(VLOOKUP($S$7+$W$7+1,$K$4:$M$120,3,FALSE)-VLOOKUP($S$7+$W$7+$U$7+1,$K$4:$M$120,3,FALSE))/VLOOKUP($S$7,$K$4:$M$120,2,FALSE) -> 7.875021941 | Z8: a(m)y | AA8: =(S8*(($AA$7+1)/($AA$7*2)))+(S9*($AA$7-1)/(2*$AA$7)) -> 25.88889505 | AB8: a(m)y:n | AC8: =(U8*(($AA$7+1)/($AA$7*2)))+(U9*($AA$7-1)/(2*$AA$7)) -> 14.99266563 | AD8: d/a(m)y | AE8: =(W8*(($AA$7+1)/($AA$7*2)))+(W9*($AA$7-1)/(2*$AA$7)) -> 10.89622942 | AF8: d/a(m)y:n | AG8: =(Y8*(($AA$7+1)/($AA$7*2)))+(Y9*($AA$7-1)/(2*$AA$7)) -> 7.998355555
A9: 4 | B9: =(IF($B$1="c",TABLA!$D12,TABLA!$K12))*EXP(-(IF($B$1="c",TABLA!$F12,TABLA!$M12)*($B$2-TABLA!$A12))) -> 0.4074072501 | C9: 985897.5949 | E9: 4 | F9: 0.8759572437 | K9: 4 | L9: 875957.2437 | M9: =SUM(L9:$L$120) -> 27521200.51 | N9: =SUM(M9:$M$120) -> 743736085.3 | O9: 948164.2913 | P9: =SUM(O9:O$120) -> 55370926.42 | R9: äy | S9: =VLOOKUP($S$7,$K$4:$M$120,3,FALSE)/VLOOKUP($S$7,$K$4:$M$120,2,FALSE) -> 26.43056172 | T9: äy:n | U9: =(VLOOKUP($S$7,$K$4:$M$120,3,FALSE)-VLOOKUP($S$7+$U$7,$K$4:$M$120,3,FALSE))/VLOOKUP($S$7,$K$4:$M$120,2,FALSE) -> 15.23966365 | V9: d/äy | W9: =VLOOKUP($S$7+$W$7,$K$4:$M$120,3,FALSE)/VLOOKUP($S$7,$K$4:$M$120,2,FALSE) -> 11.19089807 | X9: d/äyn | Y9: =(VLOOKUP($S$7+$W$7,$K$4:$M$120,3,FALSE)-VLOOKUP($S$7+$U$7+$W$7,$K$4:$M$120,3,FALSE))/VLOOKUP($S$7,$K$4:$M$120,2,FALSE) -> 8.144113462 | Z9: ä(m)y | AA9: =(S9*(($AA$7+1)/($AA$7*2)))+(S8*($AA$7-1)/(2*$AA$7)) -> 25.97222838 | AB9: ä(m)y:n | AC9: =(U9*(($AA$7+1)/($AA$7*2)))+(U8*($AA$7-1)/(2*$AA$7)) -> 15.03066533 | AD9: d/ä(m)y | AE9: =(W9*(($AA$7+1)/($AA$7*2)))+(W8*($AA$7-1)/(2*$AA$7)) -> 10.94156306 | AF9: d/äy:n | AG9: =(Y9*(($AA$7+1)/($AA$7*2)))+(Y8*($AA$7-1)/(2*$AA$7)) -> 8.020779848
A10: 5 | B10: =(IF($B$1="c",TABLA!$D13,TABLA!$K13))*EXP(-(IF($B$1="c",TABLA!$F13,TABLA!$M13)*($B$2-TABLA!$A13))) -> 0.3234755376 | C10: 985495.9331 | E10: 5 | F10: 0.8500974489 | K10: 5 | L10: 850097.4489 | M10: =SUM(L10:$L$120) -> 26645243.26 | N10: =SUM(M10:$M$120) -> 716214884.8 | O10: 938576.2742 | P10: =SUM(O10:O$120) -> 54422762.13
A11: 6 | B11: =(IF($B$1="c",TABLA!$D14,TABLA!$K14))*EXP(-(IF($B$1="c",TABLA!$F14,TABLA!$M14)*($B$2-TABLA!$A14))) -> 0.2820632191 | C11: 985177.1493 | E11: 6 | F11: 0.8250703526 | K11: 6 | L11: 825070.3526 | M11: =SUM(L11:$L$120) -> 25795145.81 | N11: =SUM(M11:$M$120) -> 689569641.5 | O11: 929163.2243 | P11: =SUM(O11:O$120) -> 53484185.85 | R11: Increasing errenta
A12: 7 | B12: =(IF($B$1="c",TABLA!$D15,TABLA!$K15))*EXP(-(IF($B$1="c",TABLA!$F15,TABLA!$M15)*($B$2-TABLA!$A15))) -> 0.2459104582 | C12: 984899.267 | E12: 7 | F12: 0.8008132336 | K12: 7 | L12: 800813.2336 | M12: =SUM(L12:$L$120) -> 24970075.46 | N12: =SUM(M12:$M$120) -> 663774495.7 | O12: 919882.6839 | P12: =SUM(O12:O$120) -> 52555022.63
A13: 8 | B13: =(IF($B$1="c",TABLA!$D16,TABLA!$K16))*EXP(-(IF($B$1="c",TABLA!$F16,TABLA!$M16)*($B$2-TABLA!$A16))) -> 0.2001046756 | C13: 984657.07 | E13: 8 | F13: 0.7772973837 | K13: 8 | L13: 777297.3837 | M13: =SUM(L13:$L$120) -> 24169262.23 | N13: =SUM(M13:$M$120) -> 638804420.3 | O13: 910727.7714 | P13: =SUM(O13:O$120) -> 51635139.94 | R13: y | S13: 40 | T13: n | U13: 20 | V13: d | W13: 20 | Z13: m | AA13: 12
A14: 9 | B14: =(IF($B$1="c",TABLA!$D17,TABLA!$K17))*EXP(-(IF($B$1="c",TABLA!$F17,TABLA!$M17)*($B$2-TABLA!$A17))) -> 0.1783602572 | C14: 984460.0355 | E14: 9 | F14: 0.7545066436 | K14: 9 | L14: 754506.6436 | M14: =SUM(L14:$L$120) -> 23391964.84 | N14: =SUM(M14:$M$120) -> 614635158 | O14: 901705.2827 | P14: =SUM(O14:O$120) -> 50724412.17 | R14: (Ia)y | S14: =VLOOKUP($S$13+1,$K$4:$N$120,4,FALSE)/VLOOKUP($S$13,$K$4:$N$120,2,FALSE) -> 503.2763797 | T14: (Ia)y:n | U14: =(VLOOKUP($S$13+1,$K$4:$N$120,4,FALSE)-VLOOKUP($S$13+$U$13+1,$K$4:$N$120,4,FALSE)-($U$13*VLOOKUP($S$13+$U$13+1,$K$4:$N$120,3,FALSE)))/VLOOKUP($S$13,$K$4:$M$120,2,FALSE) -> 140.368632 | V14: d/(Ia)y | W14: =VLOOKUP($S$13+$W$13+1,$K$4:$N$120,4,FALSE)/VLOOKUP($S$13,$K$4:$N$120,2,FALSE) -> 149.9698596 | X14: d/(Ia)y:n | Y14: =(VLOOKUP($S$13+$W$13+1,$K$4:$N$120,4,FALSE)-VLOOKUP($S$13+$U$13+$W$13+1,$K$4:$N$120,4,FALSE)-($U$13*VLOOKUP($S$13+$U$13+$W$13+1,$K$4:$N$120,3,FALSE)))/VLOOKUP($S$13,$K$4:$M$120,2,FALSE) -> 73.95796953 | Z14: (Ia)(m)y | AA14: =(S14*(($AA$13+1)/($AA$13*2)))+(S15*($AA$13-1)/(2*$AA$13)) -> 515.3903871 | AB14: (Ia)(m)y:n | AC14: =(U14*(($AA$13+1)/($AA$13*2)))+(U15*($AA$13-1)/(2*$AA$13)) -> 142.3667776 | AD14: d/(Ia)(m)y | AE14: =(W14*(($AA$13+1)/($AA$13*2)))+(W15*($AA$13-1)/(2*$AA$13)) -> 155.0990212 | AF14: d/(Ia)(m)y:n | AG14: =(Y14*(($AA$13+1)/($AA$13*2)))+(Y15*($AA$13-1)/(2*$AA$13)) -> 75.17066022
A15: 10 | B15: =(IF($B$1="c",TABLA!$D18,TABLA!$K18))*EXP(-(IF($B$1="c",TABLA!$F18,TABLA!$M18)*($B$2-TABLA!$A18))) -> 0.1847198971 | C15: 984284.447 | E15: 10 | F15: 0.7324000675 | K15: 10 | L15: 732400.0675 | M15: =SUM(L15:$L$120) -> 22637458.2 | N15: =SUM(M15:$M$120) -> 591243193.2 | O15: 892791.5955 | P15: =SUM(O15:O$120) -> 49822706.89 | R15: (Iä)y | S15: =VLOOKUP($S$13,$K$4:$N$120,4,FALSE)/VLOOKUP($S$13,$K$4:$N$120,2,FALSE) -> 529.7069414 | T15: (Iä)y:n | U15: =(VLOOKUP($S$13,$K$4:$N$120,4,FALSE)-VLOOKUP($S$13+$U$13,$K$4:$N$120,4,FALSE)-($U$13*VLOOKUP($S$13+$U$13,$K$4:$N$120,3,FALSE)))/VLOOKUP($S$13,$K$4:$M$120,2,FALSE) -> 144.7282224 | V15: d/(Iä)y | W15: =VLOOKUP($S$13+$W$13,$K$4:$N$120,4,FALSE)/VLOOKUP($S$13,$K$4:$N$120,2,FALSE) -> 161.1607577 | X15: d/(Iä)y:n | Y15: =(VLOOKUP($S$13+$W$13,$K$4:$N$120,4,FALSE)-VLOOKUP($S$13+$U$13+$W$13,$K$4:$N$120,4,FALSE)-($U$13*VLOOKUP($S$13+$U$13+$W$13,$K$4:$N$120,3,FALSE)))/VLOOKUP($S$13,$K$4:$M$120,2,FALSE) -> 76.60384013 | Z15: (Iä)(m)y | AA15: =(S15*(($AA$13+1)/($AA$13*2)))+(S14*($AA$13-1)/(2*$AA$13)) -> 517.5929339 | AB15: (Iä)(m)y:n | AC15: =(U15*(($AA$13+1)/($AA$13*2)))+(U14*($AA$13-1)/(2*$AA$13)) -> 142.7300768 | AD15: d/(Iä)(m)y | AE15: =(W15*(($AA$13+1)/($AA$13*2)))+(W14*($AA$13-1)/(2*$AA$13)) -> 156.0315961 | AF15: d/(Iä)y:n | AG15: =(Y15*(($AA$13+1)/($AA$13*2)))+(Y14*($AA$13-1)/(2*$AA$13)) -> 75.39114944
A16: 11 | B16: =(IF($B$1="c",TABLA!$D19,TABLA!$K19))*EXP(-(IF($B$1="c",TABLA!$F19,TABLA!$M19)*($B$2-TABLA!$A19))) -> 0.1821315063 | C16: 984102.6301 | E16: 11 | F16: 0.7109366783 | K16: 11 | L16: 710936.6783 | M16: =SUM(L16:$L$120) -> 21905058.13 | N16: =SUM(M16:$M$120) -> 568605735 | O16: 883960.4007 | P16: =SUM(O16:O$120) -> 48929915.29
A17: 12 | B17: =(IF($B$1="c",TABLA!$D20,TABLA!$K20))*EXP(-(IF($B$1="c",TABLA!$F20,TABLA!$M20)*($B$2-TABLA!$A20))) -> 0.2059208235 | C17: 983923.394 | E17: 12 | F17: 0.6901040722 | K17: 12 | L17: 690104.0722 | M17: =SUM(L17:$L$120) -> 21194121.45 | N17: =SUM(M17:$M$120) -> 546700676.9 | O17: 875218.8269 | P17: =SUM(O17:O$120) -> 48045954.89 | R17: Decreasing errenta
A18: 13 | B18: =(IF($B$1="c",TABLA!$D21,TABLA!$K21))*EXP(-(IF($B$1="c",TABLA!$F21,TABLA!$M21)*($B$2-TABLA!$A21))) -> 0.2136362449 | C18: 983720.7837 | E18: 13 | F18: 0.6698659858 | K18: 13 | L18: 669865.9858 | M18: =SUM(L18:$L$120) -> 20504017.38 | N18: =SUM(M18:$M$120) -> 525506555.4 | O18: 866543.0808 | P18: =SUM(O18:O$120) -> 47170736.07 | R18: x | S18: 40 | T18: n | U18: 20 | V18: d | W18: 20 | Z18: m | AA18: 12
A19: 14 | B19: =(IF($B$1="c",TABLA!$D22,TABLA!$K22))*EXP(-(IF($B$1="c",TABLA!$F22,TABLA!$M22)*($B$2-TABLA!$A22))) -> 0.2171872512 | C19: 983510.6252 | E19: 14 | F19: 0.6502163866 | K19: 14 | L19: 650216.3866 | M19: =SUM(L19:$L$120) -> 19834151.4 | N19: =SUM(M19:$M$120) -> 505002538 | O19: 857946.7135 | P19: =SUM(O19:O$120) -> 46304192.99 | T19: (Da)y:n | U19: =(-VLOOKUP($S$18+2,$K$4:$N$120,4,FALSE)+VLOOKUP($S$18+$U$18+2,$K$4:$N$120,4,FALSE)+($U$18*VLOOKUP($S$18+1,$K$4:$N$120,3,FALSE)))/VLOOKUP($S$18,$K$4:$M$120,2,FALSE) -> 170.0883816 | X19: d/(Da)y:n | Y19: =(-VLOOKUP($S$18+$W$18+2,$K$4:$N$120,4,FALSE)+VLOOKUP($S$18+$W$18+$U$18+2,$K$4:$N$120,4,FALSE)+($U$18*VLOOKUP($S$18+$W$18+1,$K$4:$N$120,3,FALSE)))/VLOOKUP($S$18,$K$4:$M$120,2,FALSE) -> 91.41749123 | AB19: (Da)(m)y:n | AC19: =(U19*(($AA$18+1)/($AA$18*2)))+(U20*($AA$18-1)/(2*$AA$18)) -> 172.4792008 | AF19: d/(Da)y:n | AG19: =(Y19*(($AA$18+1)/($AA$18*2)))+(Y20*($AA$18-1)/(2*$AA$18)) -> 92.79480642
A20: 15 | B20: =(IF($B$1="c",TABLA!$D23,TABLA!$K23))*EXP(-(IF($B$1="c",TABLA!$F23,TABLA!$M23)*($B$2-TABLA!$A23))) -> 0.2293932825 | C20: 983297.0193 | E20: 15 | F20: 0.6311409397 | K20: 15 | L20: 631140.9397 | M20: =SUM(L20:$L$120) -> 19183935.01 | N20: =SUM(M20:$M$120) -> 485168386.6 | O20: 849432.6077 | P20: =SUM(O20:O$120) -> 45446246.27 | T20: (Dä)x:n | U20: =(-VLOOKUP($S$18+1,$K$4:$N$120,4,FALSE)+VLOOKUP($S$18+$U$18+1,$K$4:$N$120,4,FALSE)+($U$18*VLOOKUP($S$18,$K$4:$N$120,3,FALSE)))/VLOOKUP($S$18,$K$4:$M$120,2,FALSE) -> 175.3047143 | X20: d/(Dä)y:n | Y20: =(-VLOOKUP($S$18+$W$18+1,$K$4:$N$120,4,FALSE)+VLOOKUP($S$18+$W$18+$U$18+1,$K$4:$N$120,4,FALSE)+($U$18*VLOOKUP($S$18+$W$18,$K$4:$N$120,3,FALSE)))/VLOOKUP($S$18,$K$4:$M$120,2,FALSE) -> 94.42254256 | AB20: (Dä)y:n | AC20: =(U20*(($AA$18+1)/($AA$18*2)))+(U19*($AA$18-1)/(2*$AA$18)) -> 172.9138951 | AF20: d/(Dä)y:n | AG20: =(Y20*(($AA$18+1)/($AA$18*2)))+(Y19*($AA$18-1)/(2*$AA$18)) -> 93.04522737
A21: 16 | B21: =(IF($B$1="c",TABLA!$D24,TABLA!$K24))*EXP(-(IF($B$1="c",TABLA!$F24,TABLA!$M24)*($B$2-TABLA!$A24))) -> 0.2583072409 | C21: 983071.4575 | E21: 16 | F21: 0.6126176312 | K21: 16 | L21: 612617.6312 | M21: =SUM(L21:$L$120) -> 18552794.07 | N21: =SUM(M21:$M$120) -> 465984451.6 | O21: 840992.7268 | P21: =SUM(O21:O$120) -> 44596813.66
A22: 17 | B22: =(IF($B$1="c",TABLA!$D25,TABLA!$K25))*EXP(-(IF($B$1="c",TABLA!$F25,TABLA!$M25)*($B$2-TABLA!$A25))) -> 0.2926203891 | C22: 982817.5231 | E22: 17 | F22: 0.5946207647 | K22: 17 | L22: 594620.7647 | M22: =SUM(L22:$L$120) -> 17940176.44 | N22: =SUM(M22:$M$120) -> 447431657.6 | O22: 832612.6235 | P22: =SUM(O22:O$120) -> 43755820.94 | R22: Errenta progresio geometrikoan
A23: 18 | B23: =(IF($B$1="c",TABLA!$D26,TABLA!$K26))*EXP(-(IF($B$1="c",TABLA!$F26,TABLA!$M26)*($B$2-TABLA!$A26))) -> 0.3097129968 | C23: 982529.9306 | E23: 18 | F23: 0.5771327831 | K23: 18 | L23: 577132.7831 | M23: =SUM(L23:$L$120) -> 17345555.67 | N23: =SUM(M23:$M$120) -> 429491481.1 | O23: 824287.7318 | P23: =SUM(O23:O$120) -> 42923208.31 | R23: β | S23: =1.02 -> 1.02
A24: 19 | B24: =(IF($B$1="c",TABLA!$D27,TABLA!$K27))*EXP(-(IF($B$1="c",TABLA!$F27,TABLA!$M27)*($B$2-TABLA!$A27))) -> 0.3243414872 | C24: 982225.6283 | E24: 19 | F24: 0.560149551 | K24: 19 | L24: 560149.551 | M24: =SUM(L24:$L$120) -> 16768422.89 | N24: =SUM(M24:$M$120) -> 412145925.4 | O24: 816032.1242 | P24: =SUM(O24:O$120) -> 42098920.58
A25: 20 | B25: =(IF($B$1="c",TABLA!$D28,TABLA!$K28))*EXP(-(IF($B$1="c",TABLA!$F28,TABLA!$M28)*($B$2-TABLA!$A28))) -> 0.3170113971 | C25: 981907.0518 | E25: 20 | F25: 0.5436581274 | K25: 20 | L25: 543658.1274 | M25: =SUM(L25:$L$120) -> 16208273.34 | N25: =SUM(M25:$M$120) -> 395377502.6 | O25: 807847.3788 | P25: =SUM(O25:O$120) -> 41282888.46 | R25: x | S25: 40 | T25: n | U25: 20 | V25: d | W25: 20 | Z25: m | AA25: 12
A26: 21 | B26: =(IF($B$1="c",TABLA!$D29,TABLA!$K29))*EXP(-(IF($B$1="c",TABLA!$F29,TABLA!$M29)*($B$2-TABLA!$A29))) -> 0.3225923619 | C26: 981595.7761 | E26: 21 | F26: 0.5276560987 | K26: 21 | L26: 527656.0987 | M26: =SUM(L26:$L$120) -> 15664615.21 | N26: =SUM(M26:$M$120) -> 379169229.2 | O26: 799750.5899 | P26: =SUM(O26:O$120) -> 40475041.08 | R26: Vay | S26: =VLOOKUP($S$25+1,$K$4:$P$120,6,FALSE)/(VLOOKUP($S$25,$K$4:$P$120,5,FALSE)*$M$2) -> 38.49658843 | T26: Vay:n | U26: =(VLOOKUP($S$25+1,$K$4:$P$120,6,FALSE)-VLOOKUP($S$25+$U$25+1,$K$4:$P$120,6,FALSE))/($M$2*VLOOKUP($S$25,$K$4:$P$120,5,FALSE)) -> 17.60496333 | V26: d/Vay | W26: =VLOOKUP($S$25+$W$25+1,$K$4:$P$120,6,FALSE)/(VLOOKUP($S$25,$K$4:$P$120,5,FALSE)*($M$2^($W$25+1))) -> 14.0594648 | X26: d/Vay:n | Y26: =(VLOOKUP($S$25+$W$25+1,$K$4:$P$120,6,FALSE)-VLOOKUP($S$25+$W$25+$U$25+1,$K$4:$P$120,6,FALSE))/(($M$2^($W$25+1))*VLOOKUP($S$25,$K$4:$P$120,5,FALSE)) -> 9.358194432 | Z26: Va(m)y | AA26: =(S26*(($AA$25+1)/($AA$25*2)))+(S27*($AA$25-1)/(2*$AA$25)) -> 39.30780716 | AB26: Va(m)y:n | AC26: =(U26*(($AA$25+1)/($AA$25*2)))+(U27*($AA$25-1)/(2*$AA$25)) -> 17.85417678 | AD26: d/Va(m)y | AE26: =(W26*(($AA$25+1)/($AA$25*2)))+(W27*($AA$25-1)/(2*$AA$25)) -> 14.43767824 | AF26: d/Va(m)y:n | AG26: =(Y26*(($AA$25+1)/($AA$25*2)))+(Y27*($AA$25-1)/(2*$AA$25)) -> 9.506081443
A27: 22 | B27: =(IF($B$1="c",TABLA!$D30,TABLA!$K30))*EXP(-(IF($B$1="c",TABLA!$F30,TABLA!$M30)*($B$2-TABLA!$A30))) -> 0.3003467757 | C27: 981279.1208 | E27: 22 | F27: 0.5121222144 | K27: 22 | L27: 512122.2144 | M27: =SUM(L27:$L$120) -> 15136959.11 | N27: =SUM(M27:$M$120) -> 363504614 | O27: 791730.5324 | P27: =SUM(O27:O$120) -> 39675290.49 | R27: Väy | S27: =VLOOKUP($S$25,$K$4:$P$120,6,FALSE)/VLOOKUP($S$25,$K$4:$P$120,5,FALSE) -> 40.2665202 | T27: Väy:n | U27: =(VLOOKUP($S$25,$K$4:$P$120,6,FALSE)-VLOOKUP($S$25+$U$25,$K$4:$P$120,6,FALSE))/(VLOOKUP($S$25,$K$4:$P$120,5,FALSE)) -> 18.14870176 | V27: d/Väy | W27: =VLOOKUP($S$25+$W$25,$K$4:$P$120,6,FALSE)/(VLOOKUP($S$25,$K$4:$P$120,5,FALSE)*($M$2^($W$25))) -> 14.88465776 | X27: d/Väy:n | Y27: =(VLOOKUP($S$25+$W$25,$K$4:$P$120,6,FALSE)-VLOOKUP($S$25+$W$25+$U$25,$K$4:$P$120,6,FALSE))/(($M$2^($W$25))*VLOOKUP($S$25,$K$4:$P$120,5,FALSE)) -> 9.680857001 | Z27: Vä(m)y | AA27: =(S27*(($AA$25+1)/($AA$25*2)))+(S26*($AA$25-1)/(2*$AA$25)) -> 39.45530147 | AB27: Vä(m)y:n | AC27: =(U27*(($AA$25+1)/($AA$25*2)))+(U26*($AA$25-1)/(2*$AA$25)) -> 17.89948831 | AD27: d/Vä(m)y | AE27: =(W27*(($AA$25+1)/($AA$25*2)))+(W26*($AA$25-1)/(2*$AA$25)) -> 14.50644432 | AF27: d/Vä(m)y:n | AG27: =(Y27*(($AA$25+1)/($AA$25*2)))+(Y26*($AA$25-1)/(2*$AA$25)) -> 9.53296999
A28: 23 | B28: =(IF($B$1="c",TABLA!$D31,TABLA!$K31))*EXP(-(IF($B$1="c",TABLA!$F31,TABLA!$M31)*($B$2-TABLA!$A31))) -> 0.3068424019 | C28: 980984.3968 | E28: 23 | F28: 0.4970566992 | K28: 23 | L28: 497056.6992 | M28: =SUM(L28:$L$120) -> 14624836.9 | N28: =SUM(M28:$M$120) -> 348367654.9 | O28: 783808.3432 | P28: =SUM(O28:O$120) -> 38883559.96
A29: 24 | B29: =(IF($B$1="c",TABLA!$D32,TABLA!$K32))*EXP(-(IF($B$1="c",TABLA!$F32,TABLA!$M32)*($B$2-TABLA!$A32))) -> 0.3127788242 | C29: 980683.3892 | E29: 24 | F29: 0.4824312438 | K29: 24 | L29: 482431.2438 | M29: =SUM(L29:$L$120) -> 14127780.2 | N29: =SUM(M29:$M$120) -> 333742818 | O29: 775960.3828 | P29: =SUM(O29:O$120) -> 38099751.61
A30: 25 | B30: =(IF($B$1="c",TABLA!$D33,TABLA!$K33))*EXP(-(IF($B$1="c",TABLA!$F33,TABLA!$M33)*($B$2-TABLA!$A33))) -> 0.3113140053 | C30: 980376.6522 | E30: 25 | F30: 0.468233349 | K30: 25 | L30: 468233.349 | M30: =SUM(L30:$L$120) -> 13645348.96 | N30: =SUM(M30:$M$120) -> 319615037.8 | O30: 768186.4392 | P30: =SUM(O30:O$120) -> 37323791.23
A31: 26 | B31: =(IF($B$1="c",TABLA!$D34,TABLA!$K34))*EXP(-(IF($B$1="c",TABLA!$F34,TABLA!$M34)*($B$2-TABLA!$A34))) -> 0.3286440849 | C31: 980071.4472 | E31: 26 | F31: 0.4544539626 | K31: 26 | L31: 454453.9626 | M31: =SUM(L31:$L$120) -> 13177115.61 | N31: =SUM(M31:$M$120) -> 305969688.8 | O31: 760491.4931 | P31: =SUM(O31:O$120) -> 36555604.79
A32: 27 | B32: =(IF($B$1="c",TABLA!$D35,TABLA!$K35))*EXP(-(IF($B$1="c",TABLA!$F35,TABLA!$M35)*($B$2-TABLA!$A35))) -> 0.3524205414 | C32: 979749.3525 | E32: 27 | F32: 0.4410724359 | K32: 27 | L32: 441072.4359 | M32: =SUM(L32:$L$120) -> 12722661.64 | N32: =SUM(M32:$M$120) -> 292792573.2 | O32: 752860.576 | P32: =SUM(O32:O$120) -> 35795113.3
A33: 28 | B33: =(IF($B$1="c",TABLA!$D36,TABLA!$K36))*EXP(-(IF($B$1="c",TABLA!$F36,TABLA!$M36)*($B$2-TABLA!$A36))) -> 0.3556983109 | C33: 979404.0687 | E33: 28 | F33: 0.4280747504 | K33: 28 | L33: 428074.7504 | M33: =SUM(L33:$L$120) -> 12281589.21 | N33: =SUM(M33:$M$120) -> 280069911.6 | O33: 745288.5025 | P33: =SUM(O33:O$120) -> 35042252.72
A34: 29 | B34: =(IF($B$1="c",TABLA!$D37,TABLA!$K37))*EXP(-(IF($B$1="c",TABLA!$F37,TABLA!$M37)*($B$2-TABLA!$A37))) -> 0.3770439836 | C34: 979055.6963 | E34: 29 | F34: 0.4154587232 | K34: 29 | L34: 415458.7232 | M34: =SUM(L34:$L$120) -> 11853514.46 | N34: =SUM(M34:$M$120) -> 267788322.4 | O34: 737790.1677 | P34: =SUM(O34:O$120) -> 34296964.22
A35: 30 | B35: =(IF($B$1="c",TABLA!$D38,TABLA!$K38))*EXP(-(IF($B$1="c",TABLA!$F38,TABLA!$M38)*($B$2-TABLA!$A38))) -> 0.367 | C35: 978686.5493 | E35: 30 | F35: 0.4032059 | K35: 30 | L35: 403205.9 | M35: =SUM(L35:$L$120) -> 11438055.74 | N35: =SUM(M35:$M$120) -> 255934807.9 | O35: 730351.6778 | P35: =SUM(O35:O$120) -> 33559174.05
A36: 31 | B36: =(IF($B$1="c",TABLA!$D39,TABLA!$K39))*EXP(-(IF($B$1="c",TABLA!$F39,TABLA!$M39)*($B$2-TABLA!$A39))) -> 0.3630637431 | C36: 978327.3713 | E36: 31 | F36: 0.3913183723 | K36: 31 | L36: 391318.3723 | M36: =SUM(L36:$L$120) -> 11034849.84 | N36: =SUM(M36:$M$120) -> 244496752.2 | O36: 722995.448 | P36: =SUM(O36:O$120) -> 32828822.37
A37: 32 | B37: =(IF($B$1="c",TABLA!$D40,TABLA!$K40))*EXP(-(IF($B$1="c",TABLA!$F40,TABLA!$M40)*($B$2-TABLA!$A40))) -> 0.3372858299 | C37: 977972.1761 | E37: 32 | F37: 0.3797828143 | K37: 32 | L37: =((1+$M$1)^-K37)*C37 -> 379782.8143 | M37: =SUM(L37:$L$120) -> 10643531.46 | N37: =SUM(M37:$M$120) -> 233461902.3 | O37: 715716.1298 | P37: =SUM(O37:O$120) -> 32105826.93
A38: 33 | B38: =(IF($B$1="c",TABLA!$D41,TABLA!$K41))*EXP(-(IF($B$1="c",TABLA!$F41,TABLA!$M41)*($B$2-TABLA!$A41))) -> 0.3172346299 | C38: 977642.3199 | E38: 33 | F38: 0.3685968145 | K38: 33 | L38: 368596.8145 | M38: =SUM(L38:$L$120) -> 10263748.65 | N38: =SUM(M38:$M$120) -> 222818370.9 | O38: 708528.3723 | P38: =SUM(O38:O$120) -> 31390110.8
A39: 34 | B39: =(IF($B$1="c",TABLA!$D42,TABLA!$K42))*EXP(-(IF($B$1="c",TABLA!$F42,TABLA!$M42)*($B$2-TABLA!$A42))) -> 0.3357127211 | C39: 977332.1779 | E39: 34 | F39: 0.3577474591 | K39: 34 | L39: 357747.4591 | M39: =SUM(L39:$L$120) -> 9895151.834 | N39: =SUM(M39:$M$120) -> 212554622.2 | O39: 701426.8686 | P39: =SUM(O39:O$120) -> 30681582.42
A40: 35 | B40: =(IF($B$1="c",TABLA!$D43,TABLA!$K43))*EXP(-(IF($B$1="c",TABLA!$F43,TABLA!$M43)*($B$2-TABLA!$A43))) -> 0.3844350011 | C40: 977004.0751 | E40: 35 | F40: 0.3472110279 | K40: 35 | L40: 347211.0279 | M40: =SUM(L40:$L$120) -> 9537404.375 | N40: =SUM(M40:$M$120) -> 202659470.4 | O40: 694383.7072 | P40: =SUM(O40:O$120) -> 29980155.56
A41: 36 | B41: =(IF($B$1="c",TABLA!$D44,TABLA!$K44))*EXP(-(IF($B$1="c",TABLA!$F44,TABLA!$M44)*($B$2-TABLA!$A44))) -> 0.3895020717 | C41: 976628.4805 | E41: 36 | F41: 0.336968493 | K41: 36 | L41: 336968.493 | M41: =SUM(L41:$L$120) -> 9190193.347 | N41: =SUM(M41:$M$120) -> 193122066 | O41: 687377.7641 | P41: =SUM(O41:O$120) -> 29285771.85
A42: 37 | B42: =(IF($B$1="c",TABLA!$D45,TABLA!$K45))*EXP(-(IF($B$1="c",TABLA!$F45,TABLA!$M45)*($B$2-TABLA!$A45))) -> 0.3840929391 | C42: 976248.0817 | E42: 37 | F42: 0.3270264496 | K42: 37 | L42: 327026.4496 | M42: =SUM(L42:$L$120) -> 8853224.854 | N42: =SUM(M42:$M$120) -> 183931872.7 | O42: 680439.0579 | P42: =SUM(O42:O$120) -> 28598394.08
A43: 38 | B43: =(IF($B$1="c",TABLA!$D46,TABLA!$K46))*EXP(-(IF($B$1="c",TABLA!$F46,TABLA!$M46)*($B$2-TABLA!$A46))) -> 0.3931988273 | C43: 975873.1117 | E43: 38 | F43: 0.3173794573 | K43: 38 | L43: 317379.4573 | M43: =SUM(L43:$L$120) -> 8526198.405 | N43: =SUM(M43:$M$120) -> 175078647.8 | O43: 673574.039 | P43: =SUM(O43:O$120) -> 27917955.03
A44: 39 | B44: =(IF($B$1="c",TABLA!$D47,TABLA!$K47))*EXP(-(IF($B$1="c",TABLA!$F47,TABLA!$M47)*($B$2-TABLA!$A47))) -> 0.3882143993 | C44: 975489.3996 | E44: 39 | F44: 0.308014237 | K44: 39 | L44: 308014.237 | M44: =SUM(L44:$L$120) -> 8208818.947 | N44: =SUM(M44:$M$120) -> 166552449.4 | O44: 666772.2081 | P44: =SUM(O44:O$120) -> 27244380.99
A45: 40 | B45: =(IF($B$1="c",TABLA!$D48,TABLA!$K48))*EXP(-(IF($B$1="c",TABLA!$F48,TABLA!$M48)*($B$2-TABLA!$A48))) -> 0.4458136247 | C45: 975110.7005 | E45: 40 | F45: 0.2989268558 | K45: 40 | L45: 298926.8558 | M45: =SUM(L45:$L$120) -> 7900804.71 | N45: =SUM(M45:$M$120) -> 158343630.5 | O45: 660042.354 | P45: =SUM(O45:O$120) -> 26577608.78
A46: 41 | B46: =(IF($B$1="c",TABLA!$D49,TABLA!$K49))*EXP(-(IF($B$1="c",TABLA!$F49,TABLA!$M49)*($B$2-TABLA!$A49))) -> 0.4214583275 | C46: 974675.9829 | E46: 41 | F46: 0.2900908642 | K46: 41 | L46: 290090.8642 | M46: =SUM(L46:$L$120) -> 7601877.855 | N46: =SUM(M46:$M$120) -> 150442825.8 | O46: 653342.7768 | P46: =SUM(O46:O$120) -> 25917566.43
A47: 42 | B47: =(IF($B$1="c",TABLA!$D50,TABLA!$K50))*EXP(-(IF($B$1="c",TABLA!$F50,TABLA!$M50)*($B$2-TABLA!$A50))) -> 0.4816438456 | C47: 974265.1976 | E47: 42 | F47: 0.2815229155 | K47: 42 | L47: 281522.9155 | M47: =SUM(L47:$L$120) -> 7311786.99 | N47: =SUM(M47:$M$120) -> 142840947.9 | O47: 646726.9597 | P47: =SUM(O47:O$120) -> 25264223.65
A48: 43 | B48: =(IF($B$1="c",TABLA!$D51,TABLA!$K51))*EXP(-(IF($B$1="c",TABLA!$F51,TABLA!$M51)*($B$2-TABLA!$A51))) -> 0.5042290685 | C48: 973795.9487 | E48: 43 | F48: 0.2731915745 | K48: 43 | L48: 273191.5745 | M48: =SUM(L48:$L$120) -> 7030264.075 | N48: =SUM(M48:$M$120) -> 135529160.9 | O48: 640139.5893 | P48: =SUM(O48:O$120) -> 24617496.69
A49: 44 | B49: =(IF($B$1="c",TABLA!$D52,TABLA!$K52))*EXP(-(IF($B$1="c",TABLA!$F52,TABLA!$M52)*($B$2-TABLA!$A52))) -> 0.5295070904 | C49: 973304.9325 | E49: 44 | F49: 0.2651007994 | K49: 44 | L49: 265100.7994 | M49: =SUM(L49:$L$120) -> 6757072.5 | N49: =SUM(M49:$M$120) -> 128498896.8 | O49: 633604.9986 | P49: =SUM(O49:O$120) -> 23977357.1
A50: 45 | B50: =(IF($B$1="c",TABLA!$D53,TABLA!$K53))*EXP(-(IF($B$1="c",TABLA!$F53,TABLA!$M53)*($B$2-TABLA!$A53))) -> 0.584195887 | C50: 972789.5607 | E50: 45 | F50: 0.2572431326 | K50: 45 | L50: 257243.1326 | M50: =SUM(L50:$L$120) -> 6491971.701 | N50: =SUM(M50:$M$120) -> 121741824.3 | O50: 627121.2527 | P50: =SUM(O50:O$120) -> 23343752.1
A51: 46 | B51: =(IF($B$1="c",TABLA!$D54,TABLA!$K54))*EXP(-(IF($B$1="c",TABLA!$F54,TABLA!$M54)*($B$2-TABLA!$A54))) -> 0.5831784401 | C51: 972221.261 | E51: 46 | F51: 0.2496047109 | K51: 46 | L51: 249604.7109 | M51: =SUM(L51:$L$120) -> 6234728.568 | N51: =SUM(M51:$M$120) -> 115249852.6 | O51: 620669.8921 | P51: =SUM(O51:O$120) -> 22716630.85
A52: 47 | B52: =(IF($B$1="c",TABLA!$D55,TABLA!$K55))*EXP(-(IF($B$1="c",TABLA!$F55,TABLA!$M55)*($B$2-TABLA!$A55))) -> 0.6256576844 | C52: 971654.2825 | E52: 47 | F52: 0.2421933464 | K52: 47 | L52: 242193.3464 | M52: =SUM(L52:$L$120) -> 5985123.858 | N52: =SUM(M52:$M$120) -> 109015124.1 | O52: 614285.5237 | P52: =SUM(O52:O$120) -> 22095960.96
A53: 48 | B53: =(IF($B$1="c",TABLA!$D56,TABLA!$K56))*EXP(-(IF($B$1="c",TABLA!$F56,TABLA!$M56)*($B$2-TABLA!$A56))) -> 0.635077639 | C53: 971046.3596 | E53: 48 | F53: 0.2349920547 | K53: 48 | L53: 234992.0547 | M53: =SUM(L53:$L$120) -> 5742930.511 | N53: =SUM(M53:$M$120) -> 103030000.2 | O53: 607940.9855 | P53: =SUM(O53:O$120) -> 21481675.43
A54: 49 | B54: =(IF($B$1="c",TABLA!$D57,TABLA!$K57))*EXP(-(IF($B$1="c",TABLA!$F57,TABLA!$M57)*($B$2-TABLA!$A57))) -> 0.7605766045 | C54: 970429.6697 | E54: 49 | F54: 0.2280027344 | K54: 49 | L54: 228002.7344 | M54: =SUM(L54:$L$120) -> 5507938.456 | N54: =SUM(M54:$M$120) -> 97287069.69 | O54: 601656.3045 | P54: =SUM(O54:O$120) -> 20873734.45
A55: 50 | B55: =(IF($B$1="c",TABLA!$D58,TABLA!$K58))*EXP(-(IF($B$1="c",TABLA!$F58,TABLA!$M58)*($B$2-TABLA!$A58))) -> 0.8699088635 | C55: 969691.5836 | E55: 50 | F55: 0.2211935154 | K55: 50 | L55: 221193.5154 | M55: =SUM(L55:$L$120) -> 5279935.722 | N55: =SUM(M55:$M$120) -> 91779131.24 | O55: 595361.8183 | P55: =SUM(O55:O$120) -> 20272078.14
A56: 51 | B56: =(IF($B$1="c",TABLA!$D59,TABLA!$K59))*EXP(-(IF($B$1="c",TABLA!$F59,TABLA!$M59)*($B$2-TABLA!$A59))) -> 0.9611766648 | C56: 968848.0403 | E56: 51 | F56: 0.2145641721 | K56: 51 | L56: 214564.1721 | M56: =SUM(L56:$L$120) -> 5058742.207 | N56: =SUM(M56:$M$120) -> 86499195.51 | O56: 589068.7242 | P56: =SUM(O56:O$120) -> 19676716.32
A57: 52 | B57: =(IF($B$1="c",TABLA!$D60,TABLA!$K60))*EXP(-(IF($B$1="c",TABLA!$F60,TABLA!$M60)*($B$2-TABLA!$A60))) -> 0.9833337679 | C57: 967916.8062 | E57: 52 | F57: 0.2081145029 | K57: 52 | L57: 208114.5029 | M57: =SUM(L57:$L$120) -> 4844178.034 | N57: =SUM(M57:$M$120) -> 81440453.31 | O57: 582788.9083 | P57: =SUM(O57:O$120) -> 19087647.6
A58: 53 | B58: =(IF($B$1="c",TABLA!$D61,TABLA!$K61))*EXP(-(IF($B$1="c",TABLA!$F61,TABLA!$M61)*($B$2-TABLA!$A61))) -> 1.130073841 | C58: 966965.0209 | E58: 53 | F58: 0.20185423 | K58: 53 | L58: 201854.23 | M58: =SUM(L58:$L$120) -> 4636063.532 | N58: =SUM(M58:$M$120) -> 76596275.27 | O58: 576563.2514 | P58: =SUM(O58:O$120) -> 18504858.69
A59: 54 | B59: =(IF($B$1="c",TABLA!$D62,TABLA!$K62))*EXP(-(IF($B$1="c",TABLA!$F62,TABLA!$M62)*($B$2-TABLA!$A62))) -> 1.172898619 | C59: 965872.279 | E59: 54 | F59: 0.1957535144 | K59: 54 | L59: 195753.5144 | M59: =SUM(L59:$L$120) -> 4434209.302 | N59: =SUM(M59:$M$120) -> 71960211.74 | O59: 570320.3167 | P59: =SUM(O59:O$120) -> 17928295.44
A60: 55 | B60: =(IF($B$1="c",TABLA!$D63,TABLA!$K63))*EXP(-(IF($B$1="c",TABLA!$F63,TABLA!$M63)*($B$2-TABLA!$A63))) -> 1.235137187 | C60: 964739.4088 | E60: 55 | F60: 0.189829044 | K60: 55 | L60: 189829.044 | M60: =SUM(L60:$L$120) -> 4238455.787 | N60: =SUM(M60:$M$120) -> 67526002.44 | O60: 564120.7928 | P60: =SUM(O60:O$120) -> 17357975.12
A61: 56 | B61: =(IF($B$1="c",TABLA!$D64,TABLA!$K64))*EXP(-(IF($B$1="c",TABLA!$F64,TABLA!$M64)*($B$2-TABLA!$A64))) -> 1.257095078 | C61: 963547.8232 | E61: 56 | F61: 0.1840724069 | K61: 56 | L61: 184072.4069 | M61: =SUM(L61:$L$120) -> 4048626.743 | N61: =SUM(M61:$M$120) -> 63287546.65 | O61: 557953.89 | P61: =SUM(O61:O$120) -> 16793854.33
A62: 57 | B62: =(IF($B$1="c",TABLA!$D65,TABLA!$K65))*EXP(-(IF($B$1="c",TABLA!$F65,TABLA!$M65)*($B$2-TABLA!$A65))) -> 1.378985751 | C62: 962336.552 | E62: 57 | F62: 0.1784864179 | K62: 57 | L62: 178486.4179 | M62: =SUM(L62:$L$120) -> 3864554.336 | N62: =SUM(M62:$M$120) -> 59238919.91 | O62: 551842.2706 | P62: =SUM(O62:O$120) -> 16235900.44
A63: 58 | B63: =(IF($B$1="c",TABLA!$D66,TABLA!$K66))*EXP(-(IF($B$1="c",TABLA!$F66,TABLA!$M66)*($B$2-TABLA!$A66))) -> 1.484704969 | C63: 961009.5036 | E63: 58 | F63: 0.1730488229 | K63: 58 | L63: 173048.8229 | M63: =SUM(L63:$L$120) -> 3686067.918 | N63: =SUM(M63:$M$120) -> 55374365.57 | O63: 545730.9842 | P63: =SUM(O63:O$120) -> 15684058.17
A64: 59 | B64: =(IF($B$1="c",TABLA!$D67,TABLA!$K67))*EXP(-(IF($B$1="c",TABLA!$F67,TABLA!$M67)*($B$2-TABLA!$A67))) -> 1.569506294 | C64: 959582.688 | E64: 59 | F64: 0.1677591228 | K64: 59 | L64: 167759.1228 | M64: =SUM(L64:$L$120) -> 3513019.095 | N64: =SUM(M64:$M$120) -> 51688297.66 | O64: 539630.2421 | P64: =SUM(O64:O$120) -> 15138327.19
A65: 60 | B65: =(IF($B$1="c",TABLA!$D68,TABLA!$K68))*EXP(-(IF($B$1="c",TABLA!$F68,TABLA!$M68)*($B$2-TABLA!$A68))) -> 1.666639724 | C65: 958076.617 | E65: 60 | F65: 0.1626173047 | K65: 60 | L65: 162617.3047 | M65: =SUM(L65:$L$120) -> 3345259.973 | N65: =SUM(M65:$M$120) -> 48175278.56 | O65: 533552.3833 | P65: =SUM(O65:O$120) -> 14598696.94
A66: 61 | B66: =(IF($B$1="c",TABLA!$D69,TABLA!$K69))*EXP(-(IF($B$1="c",TABLA!$F69,TABLA!$M69)*($B$2-TABLA!$A69))) -> 1.771104956 | C66: 956479.8484 | E66: 61 | F66: 0.1576177478 | K66: 61 | L66: 157617.7478 | M66: =SUM(L66:$L$120) -> 3182642.668 | N66: =SUM(M66:$M$120) -> 44830018.59 | O66: 527491.6569 | P66: =SUM(O66:O$120) -> 14065144.56
A67: 62 | B67: =(IF($B$1="c",TABLA!$D70,TABLA!$K70))*EXP(-(IF($B$1="c",TABLA!$F70,TABLA!$M70)*($B$2-TABLA!$A70))) -> 1.917464107 | C67: 954785.8222 | E67: 62 | F67: 0.1527559128 | K67: 62 | L67: 152755.9128 | M67: =SUM(L67:$L$120) -> 3025024.92 | N67: =SUM(M67:$M$120) -> 41647375.92 | O67: 521445.2059 | P67: =SUM(O67:O$120) -> 13537652.9
A68: 63 | B68: =(IF($B$1="c",TABLA!$D71,TABLA!$K71))*EXP(-(IF($B$1="c",TABLA!$F71,TABLA!$M71)*($B$2-TABLA!$A71))) -> 1.926042792 | C68: 952955.0547 | E68: 63 | F68: 0.1480223387 | K68: 63 | L68: 148022.3387 | M68: =SUM(L68:$L$120) -> 2872269.007 | N68: =SUM(M68:$M$120) -> 38622351 | O68: 515392.486 | P68: =SUM(O68:O$120) -> 13016207.7
A69: 64 | B69: =(IF($B$1="c",TABLA!$D72,TABLA!$K72))*EXP(-(IF($B$1="c",TABLA!$F72,TABLA!$M72)*($B$2-TABLA!$A72))) -> 2.063559291 | C69: 951119.6225 | E69: 64 | F69: 0.1434342149 | K69: 64 | L69: =((1+$M$1)^-K69)*C69 -> 143434.2149 | M69: =SUM(L69:$L$120) -> 2724246.669 | N69: =SUM(M69:$M$120) -> 35750081.99 | O69: 509405.645 | P69: =SUM(O69:O$120) -> 12500815.21
A70: 65 | B70: =(IF($B$1="c",TABLA!$D73,TABLA!$K73))*EXP(-(IF($B$1="c",TABLA!$F73,TABLA!$M73)*($B$2-TABLA!$A73))) -> 2.272314869 | C70: 949156.9307 | E70: 65 | F70: =((1+$G$2)^-E70)*(LOOKUP($G$1+E70,A:A,C:C)/LOOKUP($G$1,A:A,C:C)) -> 0.1389691552 | K70: 65 | L70: 138969.1552 | M70: =SUM(L70:$L$120) -> 2580812.454 | N70: =SUM(M70:$M$120) -> 33025835.32 | O70: =($M$2^K70)*L70 -> 503418.9761 | P70: =SUM(O70:O$120) -> 11991409.57
A71: 66 | B71: =(IF($B$1="c",TABLA!$D74,TABLA!$K74))*EXP(-(IF($B$1="c",TABLA!$F74,TABLA!$M74)*($B$2-TABLA!$A74))) -> 2.46096615 | C71: =C70*(1-(B70/1000)) -> 947000.1473 | E71: 66 | F71: 0.1346149258 | K71: 66 | L71: 134614.9258 | M71: =SUM(L71:$L$120) -> 2441843.299 | N71: =SUM(M71:$M$120) -> 30445022.87 | O71: 497398.5929 | P71: =SUM(O71:O$120) -> 11487990.59
A72: 67 | B72: =(IF($B$1="c",TABLA!$D75,TABLA!$K75))*EXP(-(IF($B$1="c",TABLA!$F75,TABLA!$M75)*($B$2-TABLA!$A75))) -> 2.655967445 | C72: 944669.612 | E72: 67 | F72: 0.1303724689 | K72: 67 | L72: 130372.4689 | M72: =SUM(L72:$L$120) -> 2307228.373 | N72: =SUM(M72:$M$120) -> 28003179.57 | O72: 491357.2835 | P72: =SUM(O72:O$120) -> 10990592
A73: 68 | B73: =(IF($B$1="c",TABLA!$D76,TABLA!$K76))*EXP(-(IF($B$1="c",TABLA!$F76,TABLA!$M76)*($B$2-TABLA!$A76))) -> 2.874646027 | C73: 942160.6003 | E73: 68 | F73: 0.1262390329 | K73: 68 | L73: 126239.0329 | M73: =SUM(L73:$L$120) -> 2176855.904 | N73: =SUM(M73:$M$120) -> 25695951.2 | O73: 485294.4657 | P73: =SUM(O73:O$120) -> 10499234.71
A74: 69 | B74: =(IF($B$1="c",TABLA!$D77,TABLA!$K77))*EXP(-(IF($B$1="c",TABLA!$F77,TABLA!$M77)*($B$2-TABLA!$A77))) -> 3.169547347 | C74: 939452.2221 | E74: 69 | F74: 0.122209845 | K74: 69 | L74: 122209.845 | M74: =SUM(L74:$L$120) -> 2050616.871 | N74: =SUM(M74:$M$120) -> 23519095.29 | O74: 479201.3633 | P74: =SUM(O74:O$120) -> 10013940.25
A75: 70 | B75: =(IF($B$1="c",TABLA!$D78,TABLA!$K78))*EXP(-(IF($B$1="c",TABLA!$F78,TABLA!$M78)*($B$2-TABLA!$A78))) -> 3.432315186 | C75: 936474.5838 | E75: 70 | F75: 0.1182742671 | K75: 70 | L75: 118274.2671 | M75: =SUM(L75:$L$120) -> 1928407.026 | N75: =SUM(M75:$M$120) -> 21468478.42 | O75: 473044.8176 | P75: =SUM(O75:O$120) -> 9534738.886
A76: 71 | B76: =(IF($B$1="c",TABLA!$D79,TABLA!$K79))*EXP(-(IF($B$1="c",TABLA!$F79,TABLA!$M79)*($B$2-TABLA!$A79))) -> 3.833381436 | C76: 933260.3078 | E76: 71 | F76: 0.1144352549 | K76: 71 | L76: 114435.2549 | M76: =SUM(L76:$L$120) -> 1810132.759 | N76: =SUM(M76:$M$120) -> 19540071.4 | O76: 466844.274 | P76: =SUM(O76:O$120) -> 9061694.068
A77: 72 | B77: =(IF($B$1="c",TABLA!$D80,TABLA!$K80))*EXP(-(IF($B$1="c",TABLA!$F80,TABLA!$M80)*($B$2-TABLA!$A80))) -> 4.20380218 | C77: 929682.7651 | E77: 72 | F77: 0.1106762922 | K77: 72 | L77: 110676.2922 | M77: =SUM(L77:$L$120) -> 1695697.504 | N77: =SUM(M77:$M$120) -> 17729938.64 | O77: 460539.5878 | P77: =SUM(O77:O$120) -> 8594849.794
A78: 73 | B78: =(IF($B$1="c",TABLA!$D81,TABLA!$K81))*EXP(-(IF($B$1="c",TABLA!$F81,TABLA!$M81)*($B$2-TABLA!$A81))) -> 4.741649714 | C78: 925774.5627 | E78: 73 | F78: 0.1070010009 | K78: 73 | L78: 107001.0009 | M78: =SUM(L78:$L$120) -> 1585021.212 | N78: =SUM(M78:$M$120) -> 16034241.13 | O78: 454151.1087 | P78: =SUM(O78:O$120) -> 8134310.207
A79: 74 | B79: =(IF($B$1="c",TABLA!$D82,TABLA!$K82))*EXP(-(IF($B$1="c",TABLA!$F82,TABLA!$M82)*($B$2-TABLA!$A82))) -> 5.529682569 | C79: 921384.864 | E79: 74 | F79: 0.1033918831 | K79: 74 | L79: 103391.8831 | M79: =SUM(L79:$L$120) -> 1478020.211 | N79: =SUM(M79:$M$120) -> 14449219.92 | O79: 447609.3562 | P79: =SUM(O79:O$120) -> 7680159.098
A80: 75 | B80: =(IF($B$1="c",TABLA!$D83,TABLA!$K83))*EXP(-(IF($B$1="c",TABLA!$F83,TABLA!$M83)*($B$2-TABLA!$A83))) -> 6.482526225 | C80: 916289.8981 | E80: 75 | F80: 0.09982539693 | K80: 75 | L80: 99825.39693 | M80: =SUM(L80:$L$120) -> 1374628.328 | N80: =SUM(M80:$M$120) -> 12971199.71 | O80: 440812.5271 | P80: =SUM(O80:O$120) -> 7232549.742
A81: 76 | B81: =(IF($B$1="c",TABLA!$D84,TABLA!$K84))*EXP(-(IF($B$1="c",TABLA!$F84,TABLA!$M84)*($B$2-TABLA!$A84))) -> 7.651127733 | C81: 910350.0248 | E81: 76 | F81: 0.09628958852 | K81: 76 | L81: 96289.58852 | M81: =SUM(L81:$L$120) -> 1274802.931 | N81: =SUM(M81:$M$120) -> 11596571.38 | O81: 433702.9585 | P81: =SUM(O81:O$120) -> 6791737.215
A82: 77 | B82: =(IF($B$1="c",TABLA!$D85,TABLA!$K85))*EXP(-(IF($B$1="c",TABLA!$F85,TABLA!$M85)*($B$2-TABLA!$A85))) -> 9.071722622 | C82: 903384.8205 | E82: 77 | F82: 0.09276977143 | K82: 77 | L82: 92769.77143 | M82: =SUM(L82:$L$120) -> 1178513.342 | N82: =SUM(M82:$M$120) -> 10321768.45 | O82: 426206.1501 | P82: =SUM(O82:O$120) -> 6358034.256
A83: 78 | B83: =(IF($B$1="c",TABLA!$D86,TABLA!$K86))*EXP(-(IF($B$1="c",TABLA!$F86,TABLA!$M86)*($B$2-TABLA!$A86))) -> 10.66318398 | C83: 895189.564 | F83: =SUM(F5:F82) -> 30.22759316 | K83: 78 | L83: 89250.66971 | M83: =SUM(L83:$L$120) -> 1085743.571 | N83: =SUM(M83:$M$120) -> 9143255.11 | O83: 418239.3405 | P83: =SUM(O83:O$120) -> 5931828.106
A84: 79 | B84: =(IF($B$1="c",TABLA!$D87,TABLA!$K87))*EXP(-(IF($B$1="c",TABLA!$F87,TABLA!$M87)*($B$2-TABLA!$A87))) -> 12.63517225 | C84: 885643.993 | K84: 79 | L84: 85727.15864 | M84: =SUM(L84:$L$120) -> 996492.9012 | N84: =SUM(M84:$M$120) -> 8057511.539 | O84: 409762.3 | P84: =SUM(O84:O$120) -> 5513588.766
A85: 80 | B85: =(IF($B$1="c",TABLA!$D88,TABLA!$K88))*EXP(-(IF($B$1="c",TABLA!$F88,TABLA!$M88)*($B$2-TABLA!$A88))) -> 15.2455491 | C85: 874453.7286 | K85: 80 | L85: 82178.62255 | M85: =SUM(L85:$L$120) -> 910765.7426 | N85: =SUM(M85:$M$120) -> 7061018.638 | O85: 400656.8742 | P85: =SUM(O85:O$120) -> 5103826.466
A86: 81 | B86: =(IF($B$1="c",TABLA!$D89,TABLA!$K89))*EXP(-(IF($B$1="c",TABLA!$F89,TABLA!$M89)*($B$2-TABLA!$A89))) -> 18.09173387 | C86: 861122.2013 | K86: 81 | L86: 78568.70322 | M86: =SUM(L86:$L$120) -> 828587.1201 | N86: =SUM(M86:$M$120) -> 6150252.896 | O86: 390718.0708 | P86: =SUM(O86:O$120) -> 4703169.591
A87: 82 | B87: =(IF($B$1="c",TABLA!$D90,TABLA!$K90))*EXP(-(IF($B$1="c",TABLA!$F90,TABLA!$M90)*($B$2-TABLA!$A90))) -> 20.93206465 | C87: 845543.0076 | K87: 82 | L87: 74900.25161 | M87: =SUM(L87:$L$120) -> 750018.4168 | N87: =SUM(M87:$M$120) -> 5321665.775 | O87: 379924.5529 | P87: =SUM(O87:O$120) -> 4312451.521
A88: 83 | B88: =(IF($B$1="c",TABLA!$D91,TABLA!$K91))*EXP(-(IF($B$1="c",TABLA!$F91,TABLA!$M91)*($B$2-TABLA!$A91))) -> 24.71007359 | C88: 827844.0467 | K88: 83 | L88: 71196.53854 | M88: =SUM(L88:$L$120) -> 675118.1652 | N88: =SUM(M88:$M$120) -> 4571647.359 | O88: 368360.5695 | P88: =SUM(O88:O$120) -> 3932526.968
A89: 84 | B89: =(IF($B$1="c",TABLA!$D92,TABLA!$K92))*EXP(-(IF($B$1="c",TABLA!$F92,TABLA!$M92)*($B$2-TABLA!$A92))) -> 29.57356021 | C89: 807387.9594 | K89: 84 | L89: 67414.82217 | M89: =SUM(L89:$L$120) -> 603921.6267 | N89: =SUM(M89:$M$120) -> 3896529.193 | O89: 355770.4075 | P89: =SUM(O89:O$120) -> 3564166.398
A90: 85 | B90: =(IF($B$1="c",TABLA!$D93,TABLA!$K93))*EXP(-(IF($B$1="c",TABLA!$F93,TABLA!$M93)*($B$2-TABLA!$A93))) -> 34.84906766 | C90: 783510.623 | K90: 85 | L90: 63515.65618 | M90: =SUM(L90:$L$120) -> 536506.8045 | N90: =SUM(M90:$M$120) -> 3292607.567 | O90: 341897.0778 | P90: =SUM(O90:O$120) -> 3208395.991
A91: 86 | B91: =(IF($B$1="c",TABLA!$D94,TABLA!$K94))*EXP(-(IF($B$1="c",TABLA!$F94,TABLA!$M94)*($B$2-TABLA!$A94))) -> 40.39119161 | C91: 756206.0083 | K91: 86 | L91: 59516.69396 | M91: =SUM(L91:$L$120) -> 472991.1483 | N91: =SUM(M91:$M$120) -> 2756100.762 | O91: 326778.5719 | P91: =SUM(O91:O$120) -> 2866498.913
A92: 87 | B92: =(IF($B$1="c",TABLA!$D95,TABLA!$K95))*EXP(-(IF($B$1="c",TABLA!$F95,TABLA!$M95)*($B$2-TABLA!$A95))) -> 47.38496499 | C92: 725661.9465 | K92: 87 | L92: 55449.2658 | M92: =SUM(L92:$L$120) -> 413474.4544 | N92: =SUM(M92:$M$120) -> 2283109.614 | O92: 310535.1339 | P92: =SUM(O92:O$120) -> 2539720.341
A93: 88 | B93: =(IF($B$1="c",TABLA!$D96,TABLA!$K96))*EXP(-(IF($B$1="c",TABLA!$F96,TABLA!$M96)*($B$2-TABLA!$A96))) -> 54.94170691 | C93: 691276.4806 | K93: 88 | L93: 51283.30513 | M93: =SUM(L93:$L$120) -> 358025.1886 | N93: =SUM(M93:$M$120) -> 1869635.159 | O93: 292948.3944 | P93: =SUM(O93:O$120) -> 2229185.207
A94: 89 | B94: =(IF($B$1="c",TABLA!$D97,TABLA!$K97))*EXP(-(IF($B$1="c",TABLA!$F97,TABLA!$M97)*($B$2-TABLA!$A97))) -> 60.58187462 | C94: 653296.5708 | K94: 89 | L94: 47054.0901 | M94: =SUM(L94:$L$120) -> 306741.8835 | N94: =SUM(M94:$M$120) -> 1511609.971 | O94: 274165.4134 | P94: =SUM(O94:O$120) -> 1936236.813
A95: 90 | B95: =(IF($B$1="c",TABLA!$D98,TABLA!$K98))*EXP(-(IF($B$1="c",TABLA!$F98,TABLA!$M98)*($B$2-TABLA!$A98))) -> 71.01836402 | C95: 613718.6398 | K95: 90 | L95: 42915.98555 | M95: =SUM(L95:$L$120) -> 259687.7934 | N95: =SUM(M95:$M$120) -> 1204868.087 | O95: 255055.4154 | P95: =SUM(O95:O$120) -> 1662071.399
A96: 91 | B96: =(IF($B$1="c",TABLA!$D99,TABLA!$K99))*EXP(-(IF($B$1="c",TABLA!$F99,TABLA!$M99)*($B$2-TABLA!$A99))) -> 83.20100456 | C96: 570133.3461 | K96: 91 | L96: 38706.95385 | M96: =SUM(L96:$L$120) -> 216771.8078 | N96: =SUM(M96:$M$120) -> 945180.2941 | O96: 234641.3912 | P96: =SUM(O96:O$120) -> 1407015.984
A97: 92 | B97: =(IF($B$1="c",TABLA!$D100,TABLA!$K100))*EXP(-(IF($B$1="c",TABLA!$F100,TABLA!$M100)*($B$2-TABLA!$A100))) -> 97.28208142 | C97: 522697.6789 | K97: 92 | L97: 34452.90913 | M97: =SUM(L97:$L$120) -> 178064.854 | N97: =SUM(M97:$M$120) -> 728408.4863 | O97: 213030.4579 | P97: =SUM(O97:O$120) -> 1172374.593
A98: 93 | B98: =(IF($B$1="c",TABLA!$D101,TABLA!$K101))*EXP(-(IF($B$1="c",TABLA!$F101,TABLA!$M101)*($B$2-TABLA!$A101))) -> 113.4823937 | C98: 471848.5608 | K98: 93 | L98: 30195.39653 | M98: =SUM(L98:$L$120) -> 143611.9448 | N98: =SUM(M98:$M$120) -> 550343.6323 | O98: 190439.359 | P98: =SUM(O98:O$120) -> 959344.1348
A99: 94 | B99: =(IF($B$1="c",TABLA!$D102,TABLA!$K102))*EXP(-(IF($B$1="c",TABLA!$F102,TABLA!$M102)*($B$2-TABLA!$A102))) -> 133.3725198 | C99: 418302.0566 | K99: 94 | L99: 25989.0783 | M99: =SUM(L99:$L$120) -> 113416.5483 | N99: =SUM(M99:$M$120) -> 406731.6875 | O99: 167188.7394 | P99: =SUM(O99:O$120) -> 768904.7758
A100: 95 | B100: =(IF($B$1="c",TABLA!$D103,TABLA!$K103))*EXP(-(IF($B$1="c",TABLA!$F103,TABLA!$M103)*($B$2-TABLA!$A103))) -> 156.3769721 | C100: 362512.0573 | K100: 95 | L100: 21866.84412 | M100: =SUM(L100:$L$120) -> 87427.46999 | N100: =SUM(M100:$M$120) -> 293315.1392 | O100: 143483.6535 | P100: =SUM(O100:O$120) -> 601716.0364
A101: 96 | B101: =(IF($B$1="c",TABLA!$D104,TABLA!$K104))*EXP(-(IF($B$1="c",TABLA!$F104,TABLA!$M104)*($B$2-TABLA!$A104))) -> 182.9506809 | C101: 305823.5194 | K101: 96 | L101: =((1+$M$1)^-K101)*C101 -> 17910.07111 | M101: =SUM(L101:$L$120) -> 65560.62588 | N101: =SUM(M101:$M$120) -> 205887.6692 | O101: 119870.9092 | P101: =SUM(O101:O$120) -> 458232.383
A102: 97 | B102: =(IF($B$1="c",TABLA!$D105,TABLA!$K105))*EXP(-(IF($B$1="c",TABLA!$F105,TABLA!$M105)*($B$2-TABLA!$A105))) -> 213.6203725 | C102: 249872.8983 | K102: 97 | L102: 14207.19554 | M102: =SUM(L102:$L$120) -> 47650.55476 | N102: =SUM(M102:$M$120) -> 140327.0433 | O102: 96989.56662 | P102: =SUM(O102:O$120) -> 338361.4738
A103: 98 | B103: =(IF($B$1="c",TABLA!$D106,TABLA!$K106))*EXP(-(IF($B$1="c",TABLA!$F106,TABLA!$M106)*($B$2-TABLA!$A106))) -> 248.9897588 | C103: 196494.9567 | K103: 98 | L103: 10846.84382 | M103: =SUM(L103:$L$120) -> 33443.35923 | N103: =SUM(M103:$M$120) -> 92676.48856 | O103: 75530.12783 | P103: =SUM(O103:O$120) -> 241371.9072
A104: 99 | B104: =(IF($B$1="c",TABLA!$D107,TABLA!$K107))*EXP(-(IF($B$1="c",TABLA!$F107,TABLA!$M107)*($B$2-TABLA!$A107))) -> 290.369 | C104: 147569.7248 | K104: 99 | L104: 7908.826014 | M104: =SUM(L104:$L$120) -> 22596.5154 | N104: =SUM(M104:$M$120) -> 59233.12933 | O104: 56173.18204 | P104: =SUM(O104:O$120) -> 165841.7793
A105: 100 | B105: =(IF($B$1="c",TABLA!$D108,TABLA!$K108))*EXP(-(IF($B$1="c",TABLA!$F108,TABLA!$M108)*($B$2-TABLA!$A108))) -> 312.166 | C105: 104720.0514 | K105: 100 | L105: 5448.881663 | M105: =SUM(L105:$L$120) -> 14687.68939 | N105: =SUM(M105:$M$120) -> 36636.61393 | O105: 39475.21939 | P105: =SUM(O105:O$120) -> 109668.5973
A106: 101 | B106: =(IF($B$1="c",TABLA!$D109,TABLA!$K109))*EXP(-(IF($B$1="c",TABLA!$F109,TABLA!$M109)*($B$2-TABLA!$A109))) -> 342.489 | C106: 72030.01183 | K106: 101 | L106: 3638.763175 | M106: =SUM(L106:$L$120) -> 9238.807726 | N106: =SUM(M106:$M$120) -> 21948.92454 | O106: 26888.78254 | P106: =SUM(O106:O$120) -> 70193.37791
A107: 102 | B107: =(IF($B$1="c",TABLA!$D110,TABLA!$K110))*EXP(-(IF($B$1="c",TABLA!$F110,TABLA!$M110)*($B$2-TABLA!$A110))) -> 365.956 | C107: 47360.52511 | K107: 102 | L107: 2322.841567 | M107: =SUM(L107:$L$120) -> 5600.044551 | N107: =SUM(M107:$M$120) -> 12710.11681 | O107: 17508.02301 | P107: =SUM(O107:O$120) -> 43304.59537
A108: 103 | B108: =(IF($B$1="c",TABLA!$D111,TABLA!$K111))*EXP(-(IF($B$1="c",TABLA!$F111,TABLA!$M111)*($B$2-TABLA!$A111))) -> 389.957 | C108: 30028.65678 | K108: 103 | L108: 1429.887144 | M108: =SUM(L108:$L$120) -> 3277.202984 | N108: =SUM(M108:$M$120) -> 7110.072263 | O108: 10993.08163 | P108: =SUM(O108:O$120) -> 25796.57235
A109: 104 | B109: =(IF($B$1="c",TABLA!$D112,TABLA!$K112))*EXP(-(IF($B$1="c",TABLA!$F112,TABLA!$M112)*($B$2-TABLA!$A112))) -> 414.475 | C109: 18318.77187 | K109: 104 | L109: 846.8860612 | M109: =SUM(L109:$L$120) -> 1847.31584 | N109: =SUM(M109:$M$120) -> 3832.869279 | O109: 6641.143251 | P109: =SUM(O109:O$120) -> 14803.49072
A110: 105 | B110: =(IF($B$1="c",TABLA!$D113,TABLA!$K113))*EXP(-(IF($B$1="c",TABLA!$F113,TABLA!$M113)*($B$2-TABLA!$A113))) -> 439.502 | C110: 10726.0989 | K110: 105 | L110: 481.4300592 | M110: =SUM(L110:$L$120) -> 1000.429779 | N110: =SUM(M110:$M$120) -> 1985.553438 | O110: 3850.802437 | P110: =SUM(O110:O$120) -> 8162.34747
A111: 106 | B111: =(IF($B$1="c",TABLA!$D114,TABLA!$K114))*EXP(-(IF($B$1="c",TABLA!$F114,TABLA!$M114)*($B$2-TABLA!$A114))) -> 465.043 | C111: 6011.956981 | K111: 106 | L111: 261.9811508 | M111: =SUM(L111:$L$120) -> 518.9997198 | N111: =SUM(M111:$M$120) -> 985.1236593 | O111: 2137.412044 | P111: =SUM(O111:O$120) -> 4311.545033
A112: 107 | B112: =(IF($B$1="c",TABLA!$D115,TABLA!$K115))*EXP(-(IF($B$1="c",TABLA!$F115,TABLA!$M115)*($B$2-TABLA!$A115))) -> 491.114 | C112: 3216.138471 | K112: 107 | L112: 136.066651 | M112: =SUM(L112:$L$120) -> 257.018569 | N112: =SUM(M112:$M$120) -> 466.1239395 | O112: 1132.322336 | P112: =SUM(O112:O$120) -> 2174.132989
A113: 108 | B113: =(IF($B$1="c",TABLA!$D116,TABLA!$K116))*EXP(-(IF($B$1="c",TABLA!$F116,TABLA!$M116)*($B$2-TABLA!$A116))) -> 518.648 | C113: 1636.647842 | K113: 108 | L113: 67.22564441 | M113: =SUM(L113:$L$120) -> 120.951918 | N113: =SUM(M113:$M$120) -> 209.1053706 | O113: 570.6285862 | P113: =SUM(O113:O$120) -> 1041.810653
A114: 109 | B114: =(IF($B$1="c",TABLA!$D117,TABLA!$K117))*EXP(-(IF($B$1="c",TABLA!$F117,TABLA!$M117)*($B$2-TABLA!$A117))) -> 547.724 | C114: 787.8037119 | K114: 109 | L114: 31.41669746 | M114: =SUM(L114:$L$120) -> 53.72627361 | N114: =SUM(M114:$M$120) -> 88.15345254 | O114: 272.006481 | P114: =SUM(O114:O$120) -> 471.1820668
A115: 110 | B115: =(IF($B$1="c",TABLA!$D118,TABLA!$K118))*EXP(-(IF($B$1="c",TABLA!$F118,TABLA!$M118)*($B$2-TABLA!$A118))) -> 578.431 | C115: 356.3047116 | K115: 110 | L115: 13.79516336 | M115: =SUM(L115:$L$120) -> 22.30957615 | N115: =SUM(M115:$M$120) -> 34.42717893 | O115: 121.8276148 | P115: =SUM(O115:O$120) -> 199.1755858
A116: 111 | B116: =(IF($B$1="c",TABLA!$D119,TABLA!$K119))*EXP(-(IF($B$1="c",TABLA!$F119,TABLA!$M119)*($B$2-TABLA!$A119))) -> 610.859 | C116: 150.207021 | K116: 111 | L116: 5.64622643 | M116: =SUM(L116:$L$120) -> 8.514412786 | N116: =SUM(M116:$M$120) -> 12.11760278 | O116: 50.86011715 | P116: =SUM(O116:O$120) -> 77.34797098
A117: 112 | B117: =(IF($B$1="c",TABLA!$D120,TABLA!$K120))*EXP(-(IF($B$1="c",TABLA!$F120,TABLA!$M120)*($B$2-TABLA!$A120))) -> 645.106 | C117: 58.45171035 | K117: 112 | L117: 2.133182718 | M117: =SUM(L117:$L$120) -> 2.868186356 | N117: =SUM(M117:$M$120) -> 3.603189994 | O117: 19.59960387 | P117: =SUM(O117:O$120) -> 26.48785382
A118: 113 | B118: =(IF($B$1="c",TABLA!$D121,TABLA!$K121))*EXP(-(IF($B$1="c",TABLA!$F121,TABLA!$M121)*($B$2-TABLA!$A121))) -> 1000 | C118: 20.74416129 | K118: 113 | L118: 0.7350036383 | M118: =SUM(L118:$L$120) -> 0.7350036383 | N118: =SUM(M118:$M$120) -> 0.7350036383 | O118: 6.888249954 | P118: =SUM(O118:O$120) -> 6.888249954
A119: 114 | B119: =(IF($B$1="c",TABLA!$D122,TABLA!$K122))*EXP(-(IF($B$1="c",TABLA!$F122,TABLA!$M122)*($B$2-TABLA!$A122))) -> 0 | C119: 0 | K119: 114 | L119: 0 | M119: =SUM(L119:$L$120) -> 0 | N119: =SUM(M119:$M$120) -> 0 | O119: 0 | P119: =SUM(O119:O$120) -> 0
A120: 115 | B120: =(IF($B$1="c",TABLA!$D123,TABLA!$K123))*EXP(-(IF($B$1="c",TABLA!$F123,TABLA!$M123)*($B$2-TABLA!$A123))) -> 0 | C120: 0 | K120: 115 | L120: 0 | M120: =SUM(L120:$L$120) -> 0 | N120: =SUM(M120:$M$120) -> 0 | O120: 0 | P120: =SUM(O120:O$120) -> 0
